Workbook

Sheet Select Winches
A1: COMPARISON OF SPECIFICATIONS
A2: Self-Tailing Winches
B3: Calculated Power Ratios
B4: Power Ratio = ( 2 * length of handle * gear ratio ) / diameter of drum
B5: For manufacturer's power ratios see following Specs worksheets
B6: Anderson (S/S) | L6: Mfg. Stated Power Ratio
A7: Function | B7: Model | C7: 1st Power Ratio | D7: 2nd Power Ratio | F7: 1st Gear Ratio | G7: 2nd Gear Ratio | I7: D | J7: B | K7: H | L7: 1st Power Ratio | M7: 2nd Power Ratio
A8: Primary | B8: 52ST | C8: =LenHandle*2*F8/$I8 -> 16.256 | D8: 53.34 | F8: =VLOOKUP($B8,AndersonSpecs,4) -> 3.2 | G8: =VLOOKUP($B8,AndersonSpecs,5) -> 10.5 | I8: =VLOOKUP($B8,AndersonSpecs,10) -> 3.937007874 | J8: =VLOOKUP($B8,AndersonSpecs,11) -> 7.874015748 | K8: =VLOOKUP($B8,AndersonSpecs,12) -> 8.858267717 | L8: =VLOOKUP($B8,AndersonSpecs,7) -> 16.2 | M8: =VLOOKUP($B8,AndersonSpecs,8) -> 52
A9: Secondary | B9: 40ST | C9: 8.689473684 | D9: 40.10526316 | F9: =VLOOKUP(B9,AndersonSpecs,4) -> 1.3 | G9: =VLOOKUP(B9,AndersonSpecs,5) -> 6 | I9: =VLOOKUP($B9,AndersonSpecs,10) -> 2.992125984 | J9: =VLOOKUP($B9,AndersonSpecs,11) -> 5.984251969 | K9: =VLOOKUP($B9,AndersonSpecs,12) -> 6.771653543 | L9: =VLOOKUP($B9,AndersonSpecs,7) -> 8.5 | M9: =VLOOKUP($B9,AndersonSpecs,8) -> 39.5
A10: Trim | B10: 28ST | C10: 9.434285714 | D10: 26.85142857 | F10: =VLOOKUP(B10,AndersonSpecs,4) -> 1.3 | G10: =VLOOKUP(B10,AndersonSpecs,5) -> 3.7 | I10: =VLOOKUP($B10,AndersonSpecs,10) -> 2.755905512 | J10: =VLOOKUP($B10,AndersonSpecs,11) -> 4.921259843 | K10: =VLOOKUP($B10,AndersonSpecs,12) -> 5.984251969 | L10: =VLOOKUP($B10,AndersonSpecs,7) -> 9.5 | M10: =VLOOKUP($B10,AndersonSpecs,8) -> 26.5
B12: Harken Chrome | L12: Mfg. Stated Power Ratio
A13: Model | B13: Model | C13: 1st Power Ratio | D13: 2nd Power Ratio | E13: 3rd Power Ratio | F13: 1st Gear Ratio | G13: 2nd Gear Ratio | H13: 3rd Gear Ratio* | I13: D | J13: B | K13: H | L13: 1st Power Ratio | M13: 2nd Power Ratio
A14: Primary | B14: B56.3STC | C14: =LenHandle*2*F14/$I14 -> 21.05263158 | D14: 54.73684211 | E14: 9.263157895 | F14: =VLOOKUP($B14,HarkenSpecs,4) -> 5 | G14: =VLOOKUP($B14,HarkenSpecs,5) -> 13 | H14: =VLOOKUP($B14,HarkenSpecs,6) -> 2.2 | I14: =VLOOKUP($B14,HarkenSpecs,10) -> 4.75 | J14: =VLOOKUP($B14,HarkenSpecs,11) -> 8.875 | K14: =VLOOKUP($B14,HarkenSpecs,12) -> 10.625 | L14: =VLOOKUP($B14,HarkenSpecs,7) -> 21 | M14: =VLOOKUP($B14,HarkenSpecs,8) -> 56
A15: Secondary | B15: B40.2STC | C15: 14.66666667 | D15: 40 | F15: =VLOOKUP(B15,HarkenSpecs,4) -> 2.2 | G15: =VLOOKUP(B15,HarkenSpecs,5) -> 6 | H15: =VLOOKUP($B15,HarkenSpecs,6) ->  | I15: =VLOOKUP($B15,HarkenSpecs,10) -> 3 | J15: =VLOOKUP($B15,HarkenSpecs,11) -> 5.875 | K15: =VLOOKUP($B15,HarkenSpecs,12) -> 6.9375 | L15: =VLOOKUP($B15,HarkenSpecs,7) -> 13.5 | M15: =VLOOKUP($B15,HarkenSpecs,8) -> 40
A16: Trim | B16: B32.2STC | C16: 16.34042553 | D16: 32 | F16: =VLOOKUP(B16,HarkenSpecs,4) -> 2.4 | G16: =VLOOKUP(B16,HarkenSpecs,5) -> 4.7 | H16: =VLOOKUP($B16,HarkenSpecs,6) ->  | I16: =VLOOKUP($B16,HarkenSpecs,10) -> 2.9375 | J16: =VLOOKUP($B16,HarkenSpecs,11) -> 5.375 | K16: =VLOOKUP($B16,HarkenSpecs,12) -> 6.4375 | L16: =VLOOKUP($B16,HarkenSpecs,7) -> 16 | M16: =VLOOKUP($B16,HarkenSpecs,8) -> 32
B18: Lewmar Chrome | L18: Mfg. Stated Power Ratio
A19: Model | B19: Model | C19: 1st Power Ratio | D19: 2nd Power Ratio | F19: 1st Gear Ratio | G19: 2nd Gear Ratio | I19: D | J19: B | K19: H | L19: 1st Power Ratio | M19: 2nd Power Ratio
A20: Primary | B20: 54CST | C20: =LenHandle*2*F20/$I20 -> 13.57575758 | D20: 54.3030303 | F20: =VLOOKUP($B20,LewmarSpecs,4) -> 2.8 | G20: =VLOOKUP($B20,LewmarSpecs,5) -> 11.2 | I20: =VLOOKUP($B20,LewmarSpecs,10) -> 4.125 | J20: =VLOOKUP($B20,LewmarSpecs,11) -> 8.0625 | K20: =VLOOKUP($B20,LewmarSpecs,12) -> 9.875 | L20: =VLOOKUP($B20,LewmarSpecs,7) -> 13.8 | M20: =VLOOKUP($B20,LewmarSpecs,8) -> 54
A21: Secondary | B21: 40CST | C21: 13.10344828 | D21: 40 | F21: =VLOOKUP(B21,LewmarSpecs,4) -> 1.9 | G21: =VLOOKUP(B21,LewmarSpecs,5) -> 5.8 | I21: =VLOOKUP($B21,LewmarSpecs,10) -> 2.9 | J21: =VLOOKUP($B21,LewmarSpecs,11) -> 5.8125 | K21: =VLOOKUP($B21,LewmarSpecs,12) -> 6.8125 | L21: =VLOOKUP($B21,LewmarSpecs,7) -> 13.2 | M21: =VLOOKUP($B21,LewmarSpecs,8) -> 40.2
A22: Trim | B22: 30CST | C22: 13.61702128 | D22: 28.59574468 | F22: =VLOOKUP(B22,LewmarSpecs,4) -> 2 | G22: =VLOOKUP(B22,LewmarSpecs,5) -> 4.2 | I22: =VLOOKUP($B22,LewmarSpecs,10) -> 2.9375 | J22: =VLOOKUP($B22,LewmarSpecs,11) -> 5.4375 | K22: =VLOOKUP($B22,LewmarSpecs,12) -> 6.3125 | L22: =VLOOKUP($B22,LewmarSpecs,7) -> 13.8 | M22: =VLOOKUP($B22,LewmarSpecs,8) -> 29.2
B24: * "3rd Power Ratio" actually refers to the LOWEST power ratio. Only Harken has 3-speed winchs.
A26: Spreadsheet written by Jeff Stander, KP44 Beatrix.

Sheet Vessel Sheet Loads
A1: Calculated Genoa Sheet Loadings | O1: HIDDEN | P1: HIDDEN | Q1: HIDDEN
A2: Sail | B2: Area | C2: =C19 -> Load (lbs.) for Apparent Wind (Knots) | O2: TRUE | P2: TRUE | Q2: =IF(P2,Q4,1) -> 0.2
B3: Square Feet | C3: 5 | D3: =C3+5 -> 10 | E3: =D3+5 -> 15 | F3: =E3+5 -> 20 | G3: =F3+5 -> 25 | H3: =G3+5 -> 30 | I3: 35 | J3: 40 | K3: 45 | L3: 50 | M3: 55 | N3: 60 | O3: =IF(NOT(UseFPS),1/2.2,1) -> 1
A4: Furling Genoa | B4: 479.6 | C4: =KgPerLb*$B4*C$3*C$3*0.00431 -> 51.6769 | D4: 206.7076 | E4: 465.0921 | F4: 826.8304 | G4: 1291.9225 | H4: 1860.3684 | I4: 2532.1681 | J4: 3307.3216 | K4: 4185.8289 | L4: 5167.69 | M4: 6252.9049 | N4: 7441.4736 | Q4: =VLOOKUP(B16,TravellerBlock,2) -> 0.2
A5: Genoa Part Furled (100%) | B5: 385 | C5: 41.48375 | D5: 165.935 | E5: 373.35375 | F5: 663.74 | G5: 1037.09375 | H5: 1493.415 | I5: 2032.70375 | J5: 2654.96 | K5: 3360.18375 | L5: 4148.375 | M5: 5019.53375 | N5: 5973.66 | P5: 1:1 | Q5: =1/LEFT(P5) -> 1
A6: Working Staysail | B6: 160 | C6: 17.24 | D6: 68.96 | E6: 155.16 | F6: 275.84 | G6: 431 | H6: 620.64 | I6: 844.76 | J6: 1103.36 | K6: 1396.44 | L6: 1724 | M6: 2086.04 | N6: 2482.56 | P6: 2:1 | Q6: =1/LEFT(P6) -> 0.5
A7: Storm Staysail | B7: 115 | C7: 12.39125 | D7: 49.565 | E7: 111.52125 | F7: 198.26 | G7: 309.78125 | H7: 446.085 | I7: 607.17125 | J7: 793.04 | K7: 1003.69125 | L7: 1239.125 | M7: 1499.34125 | N7: 1784.34 | P7: 3:1 | Q7: 0.3333333333
A8: Asym. Cr. Spinnaker | B8: 1295 | C8: 139.53625 | D8: 558.145 | E8: 1255.82625 | F8: 2232.58 | G8: 3488.40625 | H8: 5023.305 | I8: 6837.27625 | J8: 8930.32 | K8: 11302.43625 | L8: 13953.625 | M8: 16883.88625 | N8: 20093.22 | P8: 4:1 | Q8: 0.25
A9: Genoa Sheet Load (lbs.) = SA * V**2 * 0.00431 | P9: 5:1 | Q9: 0.2
A10: Formula Source: Harken (http://www.harken.com/content.aspx?id=9096) | P10: 6:1 | Q10: 0.1666666667
P11: 7:1 | Q11: 0.1428571429
A12: Mainsail Dimensions | B12: =B21 -> 1 | C12: =B22 -> 0.75 | D12: =B23 -> 0.5012722646 | E12: =B24 -> 0.2798982188 | P12: 8:1 | Q12: 0.125
A13: P. Foot length of Main in feet | B13: 45.33 | C13: =SQRT($B$22)*P -> 39.25693155 | D13: =SQRT($B$23)*P -> 32.09390457 | E13: =SQRT($B$24)*P -> 23.98202141
A14: E. Luff Length of Main in feet | B14: 14.6 | C14: =SQRT($B$22)*E -> 12.6439709 | D14: =SQRT($B$23)*E -> 10.33688521 | E14: =SQRT($B$24)*E -> 7.724189558
A15: X. Distance from Aft end of boom to mainsheet attachment point in feet | B15: 0 | C15: =X-(E-E_2) -> -1.956029105 | D15: =X-(E-E_3) -> -4.263114786 | E15: =X-(E-E_4) -> -6.875810442
A16: R: Traveller Block Ratio | B16: 5:1
A18: =CONCATENATE("Calculated Main Sheet Loadings",IF(P2," Including Traveller Purchase","")) -> Calculated Main Sheet Loadings Including Traveller Purchase
A19: Sail | B19: Area as % of Main | C19: =CONCATENATE("Load (",IF(UseFPS,"lbs.","kg."),") for Apparent Wind (Knots)") -> Load (lbs.) for Apparent Wind (Knots)
C20: 5 | D20: =C20+5 -> 10 | E20: =D20+5 -> 15 | F20: =E20+5 -> 20 | G20: =F20+5 -> 25 | H20: =G20+5 -> 30 | I20: 35 | J20: 40 | K20: 45 | L20: 50 | M20: 55 | N20: 60
A21: Mainsail | B21: 1 | C21: =KgPerLb*E^2*P^2*0.00431*C$3^2/(SQRT(P^2+E^2)*(E-X))*tp -> 13.57541207 | D21: 54.30164826 | E21: 122.1787086 | F21: 217.206593 | G21: 339.3853016 | H21: 488.7148343 | I21: 665.1951912 | J21: 868.8263722 | K21: 1099.608377 | L21: 1357.541207 | M21: 1642.62486 | N21: 1954.859337
A22: Mainsail 1st Reef | B22: 0.75 | C22: =KgPerLb*E_2^2*P_2^2*0.00431*C$3^2/(SQRT(P_2^2+E_2^2)*(E_2-X_2))*tp -> 8.817488786 | D22: 35.26995515 | E22: 79.35739908 | F22: 141.0798206 | G22: 220.4372197 | H22: 317.4295963 | I22: 432.0569505 | J22: 564.3192823 | K22: 714.2165917 | L22: 881.7488786 | M22: 1066.916143 | N22: 1269.718385
A23: Mainsail 2nd Reef | B23: =197/393 -> 0.5012722646 | C23: =KgPerLb*E_3^2*P_3^2*0.00431*C$3^2/(SQRT(P_3^2+E_3^2)*(E_3-X_3))*tp -> 4.817963823 | D23: 19.27185529 | E23: 43.3616744 | F23: 77.08742116 | G23: 120.4490956 | H23: 173.4466976 | I23: 236.0802273 | J23: 308.3496846 | K23: 390.2550696 | L23: 481.7963823 | M23: 582.9736225 | N23: 693.7867905
A24: Storm Trysail / Third Reef | B24: =110/393 -> 0.2798982188 | C24: =KgPerLb*E_4^2*P_4^2*0.00431*C$3^2/(SQRT(P_4^2+E_4^2)*(E_4-X_4))*tp -> 2.010264591 | D24: 8.041058366 | E24: 18.09238132 | F24: 32.16423346 | G24: 50.25661479 | H24: 72.36952529 | I24: 98.50296498 | J24: 128.6569339 | K24: 162.8314319 | L24: 201.0264591 | M24: 243.2420156 | N24: 289.4781012
A25: Main Sheet Load (lbs) = E**2 * P**2 * 0.00431 * V**2 /(sqrt(P**2 + E**2) * (E - X))
A26: Formula Source: Harken (http://www.harken.com/MainsheetLoading)
A27: This formula is not so well accepted as the Genoa Sheet Loadings and should only be used as a rough guide
A29: Control Line Loadings
B30: % of Main-sheet loads | C30: =CONCATENATE("Max ",C19) -> Max Load (lbs.) for Apparent Wind (Knots)
C31: 5 | D31: =C31+5 -> 10 | E31: =D31+5 -> 15 | F31: =E31+5 -> 20 | G31: =F31+5 -> 25 | H31: =G31+5 -> 30 | I31: 35 | J31: 40 | K31: 45 | L31: 50 | M31: 55 | N31: 60
A32: Based on Main Sheet Loadings: | C32: No Reef | F32: First Reef | I32: Second Reef | L32: Trysail
A33: Outhaul/Cunningham | B33: 0.5 | C33: =KgPerLb*C21*$B$33 -> 6.787706033 | D33: =KgPerLb*D21*$B$33 -> 27.15082413 | E33: =KgPerLb*E21*$B$33 -> 61.08935429 | F33: =KgPerLb*F22*$B$33 -> 70.53991029 | G33: =KgPerLb*G22*$B$33 -> 110.2186098 | H33: =KgPerLb*H22*$B$33 -> 158.7147982 | I33: =KgPerLb*I23*$B$33 -> 118.0401137 | J33: =KgPerLb*J23*$B$33 -> 154.1748423 | K33: =KgPerLb*K23*$B$33 -> 195.1275348 | L33: =KgPerLb*L24*$B$33 -> 100.5132296 | M33: =KgPerLb*M24*$B$33 -> 121.6210078 | N33: =KgPerLb*N24*$B$33 -> 144.7390506

Sheet Comparative Handle Loads
A1: Comparative Winch Handle Loads
A2: Power Ratio = 2 * length of handle * gear ratio / diameter of drum. This formula is the theoretical maximum and is subject to friction losses.
A3: Length of Handle (in.) = | B3: 10
A4: Max Handle Load (lb.) = | B4: 30 | C4: (Brion Toss recommends 35# as desired max handle load)
A5: Friction Losses (in %) | B5: 0.2 | C5: (Some estimates are as high as 35%, depends on # of wraps, load, and internal construction of the winch)
A6: Loads less than Max Handle Load (I.e. allowable loads) are indicated by bold numbers in following pages, e.g: | J6: 75
A7: Greyed out boxes are outside the normal wind range of the subject sail, e.g. ………………………………………. | J7: 114
A9: FIRST WINCH SPEED
A11: Sail | B11: Model | C11: 1st Speed | D11: Anderson Winch Handle Load (lbs.) for Apparent Wind (Knots)
C12: Power Ratio | D12: 5 | E12: =D12+5 -> 10 | F12: 15 | G12: 20 | H12: 25 | I12: 30 | J12: 35 | K12: 40 | L12: 45 | M12: 50 | N12: 55 | O12: 60
A13: ='Vessel Sheet Loads'!$A$4 -> Furling Genoa | B13: ='Select Winches'!$B$8 -> 52ST | C13: =VLOOKUP(B13,AndersonSpecs,4)*2*LenHandle/VLOOKUP(B13,AndersonSpecs,10) -> 16.256 | D13: =(1-FrictionLosses)*'Vessel Sheet Loads'!$C$4/$C13 -> 2.543154528 | E13: =ROUND((1-FrictionLosses)*'Vessel Sheet Loads'!$D$4/$C13,0) -> 10 | F13: =ROUND((1-FrictionLosses)*'Vessel Sheet Loads'!$E$4/$C13,0) -> 23 | G13: =ROUND((1-FrictionLosses)*'Vessel Sheet Loads'!$F$4/$C13,0) -> 41 | H13: =ROUND((1-FrictionLosses)*'Vessel Sheet Loads'!$G$4/$C13,0) -> 64 | I13: =ROUND((1-FrictionLosses)*'Vessel Sheet Loads'!$H$4/$C13,0) -> 92 | J13: =ROUND((1-FrictionLosses)*'Vessel Sheet Loads'!$I$4/$C13,0) -> 125 | K13: =ROUND((1-FrictionLosses)*'Vessel Sheet Loads'!$J$4/$C13,0) -> 163 | L13: =ROUND((1-FrictionLosses)*'Vessel Sheet Loads'!$K$4/$C13,0) -> 206 | M13: =ROUND((1-FrictionLosses)*'Vessel Sheet Loads'!$L$4/$C13,0) -> 254 | N13: =ROUND((1-FrictionLosses)*'Vessel Sheet Loads'!$M$4/$C13,0) -> 308 | O13: =ROUND((1-FrictionLosses)*'Vessel Sheet Loads'!$N$4/$C13,0) -> 366
A14: ='Vessel Sheet Loads'!$A$5 -> Genoa Part Furled (100%) | B14: ='Select Winches'!$B$8 -> 52ST | C14: 16.256 | D14: =(1-FrictionLosses)*'Vessel Sheet Loads'!$C$5/$C14 -> 2.04152313 | E14: =ROUND((1-FrictionLosses)*'Vessel Sheet Loads'!$D$5/$C14,0) -> 8 | F14: =ROUND((1-FrictionLosses)*'Vessel Sheet Loads'!$E$5/$C14,0) -> 18 | G14: =ROUND((1-FrictionLosses)*'Vessel Sheet Loads'!$F$5/$C14,0) -> 33 | H14: =ROUND((1-FrictionLosses)*'Vessel Sheet Loads'!$G$5/$C14,0) -> 51 | I14: =ROUND((1-FrictionLosses)*'Vessel Sheet Loads'!$H$5/$C14,0) -> 73 | J14: =ROUND((1-FrictionLosses)*'Vessel Sheet Loads'!$I$5/$C14,0) -> 100 | K14: =ROUND((1-FrictionLosses)*'Vessel Sheet Loads'!$J$5/$C14,0) -> 131 | L14: =ROUND((1-FrictionLosses)*'Vessel Sheet Loads'!$K$5/$C14,0) -> 165 | M14: =ROUND((1-FrictionLosses)*'Vessel Sheet Loads'!$L$5/$C14,0) -> 204 | N14: =ROUND((1-FrictionLosses)*'Vessel Sheet Loads'!$M$5/$C14,0) -> 247 | O14: =ROUND((1-FrictionLosses)*'Vessel Sheet Loads'!$N$5/$C14,0) -> 294
A15: ='Vessel Sheet Loads'!$A$6 -> Working Staysail | B15: ='Select Winches'!$B$9 -> 40ST | C15: 8.689473684 | D15: =(1-FrictionLosses)*'Vessel Sheet Loads'!$C$6/$C15 -> 1.587207753 | E15: =ROUND((1-FrictionLosses)*'Vessel Sheet Loads'!$D$6/$C15,0) -> 6 | F15: =ROUND((1-FrictionLosses)*'Vessel Sheet Loads'!$E$6/$C15,0) -> 14 | G15: =ROUND((1-FrictionLosses)*'Vessel Sheet Loads'!$F$6/$C15,0) -> 25 | H15: =ROUND((1-FrictionLosses)*'Vessel Sheet Loads'!$G$6/$C15,0) -> 40 | I15: =ROUND((1-FrictionLosses)*'Vessel Sheet Loads'!$H$6/$C15,0) -> 57 | J15: =ROUND((1-FrictionLosses)*'Vessel Sheet Loads'!$I$6/$C15,0) -> 78 | K15: =ROUND((1-FrictionLosses)*'Vessel Sheet Loads'!$J$6/$C15,0) -> 102 | L15: =ROUND((1-FrictionLosses)*'Vessel Sheet Loads'!$K$6/$C15,0) -> 129 | M15: =ROUND((1-FrictionLosses)*'Vessel Sheet Loads'!$L$6/$C15,0) -> 159 | N15: =ROUND((1-FrictionLosses)*'Vessel Sheet Loads'!$M$6/$C15,0) -> 192 | O15: =ROUND((1-FrictionLosses)*'Vessel Sheet Loads'!$N$6/$C15,0) -> 229
A16: ='Vessel Sheet Loads'!$A$7 -> Storm Staysail | B16: ='Select Winches'!$B$9 -> 40ST | C16: 8.689473684 | D16: =(1-FrictionLosses)*'Vessel Sheet Loads'!$C$7/$C16 -> 1.140805572 | E16: =ROUND((1-FrictionLosses)*'Vessel Sheet Loads'!$D$7/$C16,0) -> 5 | F16: =ROUND((1-FrictionLosses)*'Vessel Sheet Loads'!$E$7/$C16,0) -> 10 | G16: =ROUND((1-FrictionLosses)*'Vessel Sheet Loads'!$F$7/$C16,0) -> 18 | H16: =ROUND((1-FrictionLosses)*'Vessel Sheet Loads'!$G$7/$C16,0) -> 29 | I16: =ROUND((1-FrictionLosses)*'Vessel Sheet Loads'!$H$7/$C16,0) -> 41 | J16: =ROUND((1-FrictionLosses)*'Vessel Sheet Loads'!$I$7/$C16,0) -> 56 | K16: =ROUND((1-FrictionLosses)*'Vessel Sheet Loads'!$J$7/$C16,0) -> 73 | L16: =ROUND((1-FrictionLosses)*'Vessel Sheet Loads'!$K$7/$C16,0) -> 92 | M16: =ROUND((1-FrictionLosses)*'Vessel Sheet Loads'!$L$7/$C16,0) -> 114 | N16: =ROUND((1-FrictionLosses)*'Vessel Sheet Loads'!$M$7/$C16,0) -> 138 | O16: =ROUND((1-FrictionLosses)*'Vessel Sheet Loads'!$N$7/$C16,0) -> 164
A17: ='Vessel Sheet Loads'!$A$8 -> Asym. Cr. Spinnaker | B17: ='Select Winches'!$B$8 -> 52ST | C17: 16.256 | D17: =(1-FrictionLosses)*'Vessel Sheet Loads'!$C$8/$C17 -> 6.866941437 | E17: =ROUND((1-FrictionLosses)*'Vessel Sheet Loads'!$D$8/$C17,0) -> 27 | F17: =ROUND((1-FrictionLosses)*'Vessel Sheet Loads'!$E$8/$C17,0) -> 62 | G17: =ROUND((1-FrictionLosses)*'Vessel Sheet Loads'!$F$8/$C17,0) -> 110 | H17: =ROUND((1-FrictionLosses)*'Vessel Sheet Loads'!$G$8/$C17,0) -> 172 | I17: =ROUND((1-FrictionLosses)*'Vessel Sheet Loads'!$H$8/$C17,0) -> 247 | J17: =ROUND((1-FrictionLosses)*'Vessel Sheet Loads'!$I$8/$C17,0) -> 336 | K17: =ROUND((1-FrictionLosses)*'Vessel Sheet Loads'!$J$8/$C17,0) -> 439 | L17: =ROUND((1-FrictionLosses)*'Vessel Sheet Loads'!$K$8/$C17,0) -> 556 | M17: =ROUND((1-FrictionLosses)*'Vessel Sheet Loads'!$L$8/$C17,0) -> 687 | N17: =ROUND((1-FrictionLosses)*'Vessel Sheet Loads'!$M$8/$C17,0) -> 831 | O17: =ROUND((1-FrictionLosses)*'Vessel Sheet Loads'!$N$8/$C17,0) -> 989
A18: ='Vessel Sheet Loads'!$A$24 -> Storm Trysail / Third Reef | B18: ='Select Winches'!$B$8 -> 52ST | C18: 16.256 | D18: =(1-FrictionLosses)*'Vessel Sheet Loads'!$C$24/$C18 -> 0.09893034407 | E18: =ROUND((1-FrictionLosses)*'Vessel Sheet Loads'!$D$24/$C18,0) -> 0 | F18: =ROUND((1-FrictionLosses)*'Vessel Sheet Loads'!$E$24/$C18,0) -> 1 | G18: =ROUND((1-FrictionLosses)*'Vessel Sheet Loads'!$F$24/$C18,0) -> 2 | H18: =ROUND((1-FrictionLosses)*'Vessel Sheet Loads'!$G$24/$C18,0) -> 2 | I18: =ROUND((1-FrictionLosses)*'Vessel Sheet Loads'!$H$24/$C18,0) -> 4 | J18: =ROUND((1-FrictionLosses)*'Vessel Sheet Loads'!$I$24/$C18,0) -> 5 | K18: =ROUND((1-FrictionLosses)*'Vessel Sheet Loads'!$J$24/$C18,0) -> 6 | L18: =ROUND((1-FrictionLosses)*'Vessel Sheet Loads'!$K$24/$C18,0) -> 8 | M18: =ROUND((1-FrictionLosses)*'Vessel Sheet Loads'!$L$24/$C18,0) -> 10 | N18: =ROUND((1-FrictionLosses)*'Vessel Sheet Loads'!$M$24/$C18,0) -> 12 | O18: =ROUND((1-FrictionLosses)*'Vessel Sheet Loads'!$N$24/$C18,0) -> 14
A20: Sail | B20: Model | C20: 1st Speed | D20: Harken Winch Handle Load (lbs.) for Apparent Wind (Knots)
C21: Power Ratio | D21: 5 | E21: =D21+5 -> 10 | F21: 15 | G21: 20 | H21: 25 | I21: 30 | J21: 35 | K21: 40 | L21: 45 | M21: 50 | N21: 55 | O21: 60
A22: =$A$13 -> Furling Genoa | B22: ='Select Winches'!$B$14 -> B56.3STC | C22: =VLOOKUP(B22,HarkenSpecs,4)*2*LenHandle/VLOOKUP(B22,HarkenSpecs,10) -> 21.05263158 | D22: =(1-FrictionLosses)*'Vessel Sheet Loads'!$C$4/$C22 -> 1.9637222 | E22: =ROUND((1-FrictionLosses)*'Vessel Sheet Loads'!$D$4/$C22,0) -> 8 | F22: =ROUND((1-FrictionLosses)*'Vessel Sheet Loads'!$E$4/$C22,0) -> 18 | G22: =ROUND((1-FrictionLosses)*'Vessel Sheet Loads'!$F$4/$C22,0) -> 31 | H22: =ROUND((1-FrictionLosses)*'Vessel Sheet Loads'!$G$4/$C22,0) -> 49 | I22: =ROUND((1-FrictionLosses)*'Vessel Sheet Loads'!$H$4/$C22,0) -> 71 | J22: =ROUND((1-FrictionLosses)*'Vessel Sheet Loads'!$I$4/$C22,0) -> 96 | K22: =ROUND((1-FrictionLosses)*'Vessel Sheet Loads'!$J$4/$C22,0) -> 126 | L22: =ROUND((1-FrictionLosses)*'Vessel Sheet Loads'!$K$4/$C22,0) -> 159 | M22: =ROUND((1-FrictionLosses)*'Vessel Sheet Loads'!$L$4/$C22,0) -> 196 | N22: =ROUND((1-FrictionLosses)*'Vessel Sheet Loads'!$M$4/$C22,0) -> 238 | O22: =ROUND((1-FrictionLosses)*'Vessel Sheet Loads'!$N$4/$C22,0) -> 283
A23: =$A$14 -> Genoa Part Furled (100%) | B23: ='Select Winches'!$B$14 -> B56.3STC | C23: 21.05263158 | D23: =(1-FrictionLosses)*'Vessel Sheet Loads'!$C$5/$C23 -> 1.5763825 | E23: =ROUND((1-FrictionLosses)*'Vessel Sheet Loads'!$D$5/$C23,0) -> 6 | F23: =ROUND((1-FrictionLosses)*'Vessel Sheet Loads'!$E$5/$C23,0) -> 14 | G23: =ROUND((1-FrictionLosses)*'Vessel Sheet Loads'!$F$5/$C23,0) -> 25 | H23: =ROUND((1-FrictionLosses)*'Vessel Sheet Loads'!$G$5/$C23,0) -> 39 | I23: =ROUND((1-FrictionLosses)*'Vessel Sheet Loads'!$H$5/$C23,0) -> 57 | J23: =ROUND((1-FrictionLosses)*'Vessel Sheet Loads'!$I$5/$C23,0) -> 77 | K23: =ROUND((1-FrictionLosses)*'Vessel Sheet Loads'!$J$5/$C23,0) -> 101 | L23: =ROUND((1-FrictionLosses)*'Vessel Sheet Loads'!$K$5/$C23,0) -> 128 | M23: =ROUND((1-FrictionLosses)*'Vessel Sheet Loads'!$L$5/$C23,0) -> 158 | N23: =ROUND((1-FrictionLosses)*'Vessel Sheet Loads'!$M$5/$C23,0) -> 191 | O23: =ROUND((1-FrictionLosses)*'Vessel Sheet Loads'!$N$5/$C23,0) -> 227
A24: =$A$15 -> Working Staysail | B24: ='Select Winches'!$B$15 -> B40.2STC | C24: 14.66666667 | D24: =(1-FrictionLosses)*'Vessel Sheet Loads'!$C$6/$C24 -> 0.9403636364 | E24: =ROUND((1-FrictionLosses)*'Vessel Sheet Loads'!$D$6/$C24,0) -> 4 | F24: =ROUND((1-FrictionLosses)*'Vessel Sheet Loads'!$E$6/$C24,0) -> 8 | G24: =ROUND((1-FrictionLosses)*'Vessel Sheet Loads'!$F$6/$C24,0) -> 15 | H24: =ROUND((1-FrictionLosses)*'Vessel Sheet Loads'!$G$6/$C24,0) -> 24 | I24: =ROUND((1-FrictionLosses)*'Vessel Sheet Loads'!$H$6/$C24,0) -> 34 | J24: =ROUND((1-FrictionLosses)*'Vessel Sheet Loads'!$I$6/$C24,0) -> 46 | K24: =ROUND((1-FrictionLosses)*'Vessel Sheet Loads'!$J$6/$C24,0) -> 60 | L24: =ROUND((1-FrictionLosses)*'Vessel Sheet Loads'!$K$6/$C24,0) -> 76 | M24: =ROUND((1-FrictionLosses)*'Vessel Sheet Loads'!$L$6/$C24,0) -> 94 | N24: =ROUND((1-FrictionLosses)*'Vessel Sheet Loads'!$M$6/$C24,0) -> 114 | O24: =ROUND((1-FrictionLosses)*'Vessel Sheet Loads'!$N$6/$C24,0) -> 135
A25: =$A$16 -> Storm Staysail | B25: ='Select Winches'!$B$15 -> B40.2STC | C25: 14.66666667 | D25: =(1-FrictionLosses)*'Vessel Sheet Loads'!$C$7/$C25 -> 0.6758863636 | E25: =ROUND((1-FrictionLosses)*'Vessel Sheet Loads'!$D$7/$C25,0) -> 3 | F25: =ROUND((1-FrictionLosses)*'Vessel Sheet Loads'!$E$7/$C25,0) -> 6 | G25: =ROUND((1-FrictionLosses)*'Vessel Sheet Loads'!$F$7/$C25,0) -> 11 | H25: =ROUND((1-FrictionLosses)*'Vessel Sheet Loads'!$G$7/$C25,0) -> 17 | I25: =ROUND((1-FrictionLosses)*'Vessel Sheet Loads'!$H$7/$C25,0) -> 24 | J25: =ROUND((1-FrictionLosses)*'Vessel Sheet Loads'!$I$7/$C25,0) -> 33 | K25: =ROUND((1-FrictionLosses)*'Vessel Sheet Loads'!$J$7/$C25,0) -> 43 | L25: =ROUND((1-FrictionLosses)*'Vessel Sheet Loads'!$K$7/$C25,0) -> 55 | M25: =ROUND((1-FrictionLosses)*'Vessel Sheet Loads'!$L$7/$C25,0) -> 68 | N25: =ROUND((1-FrictionLosses)*'Vessel Sheet Loads'!$M$7/$C25,0) -> 82 | O25: =ROUND((1-FrictionLosses)*'Vessel Sheet Loads'!$N$7/$C25,0) -> 97
A26: =$A$17 -> Asym. Cr. Spinnaker | B26: ='Select Winches'!$B$14 -> B56.3STC | C26: 21.05263158 | D26: =(1-FrictionLosses)*'Vessel Sheet Loads'!$C$8/$C26 -> 5.3023775 | E26: =ROUND((1-FrictionLosses)*'Vessel Sheet Loads'!$D$8/$C26,0) -> 21 | F26: =ROUND((1-FrictionLosses)*'Vessel Sheet Loads'!$E$8/$C26,0) -> 48 | G26: =ROUND((1-FrictionLosses)*'Vessel Sheet Loads'!$F$8/$C26,0) -> 85 | H26: =ROUND((1-FrictionLosses)*'Vessel Sheet Loads'!$G$8/$C26,0) -> 133 | I26: =ROUND((1-FrictionLosses)*'Vessel Sheet Loads'!$H$8/$C26,0) -> 191 | J26: =ROUND((1-FrictionLosses)*'Vessel Sheet Loads'!$I$8/$C26,0) -> 260 | K26: =ROUND((1-FrictionLosses)*'Vessel Sheet Loads'!$J$8/$C26,0) -> 339 | L26: =ROUND((1-FrictionLosses)*'Vessel Sheet Loads'!$K$8/$C26,0) -> 429 | M26: =ROUND((1-FrictionLosses)*'Vessel Sheet Loads'!$L$8/$C26,0) -> 530 | N26: =ROUND((1-FrictionLosses)*'Vessel Sheet Loads'!$M$8/$C26,0) -> 642 | O26: =ROUND((1-FrictionLosses)*'Vessel Sheet Loads'!$N$8/$C26,0) -> 764
A27: =$A$18 -> Storm Trysail / Third Reef | B27: ='Select Winches'!$B$14 -> B56.3STC | C27: 21.05263158 | D27: =(1-FrictionLosses)*'Vessel Sheet Loads'!$C$24/$C27 -> 0.07639005448 | E27: =ROUND((1-FrictionLosses)*'Vessel Sheet Loads'!$D$24/$C27,0) -> 0 | F27: =ROUND((1-FrictionLosses)*'Vessel Sheet Loads'!$E$24/$C27,0) -> 1 | G27: =ROUND((1-FrictionLosses)*'Vessel Sheet Loads'!$F$24/$C27,0) -> 1 | H27: =ROUND((1-FrictionLosses)*'Vessel Sheet Loads'!$G$24/$C27,0) -> 2 | I27: =ROUND((1-FrictionLosses)*'Vessel Sheet Loads'!$H$24/$C27,0) -> 3 | J27: =ROUND((1-FrictionLosses)*'Vessel Sheet Loads'!$I$24/$C27,0) -> 4 | K27: =ROUND((1-FrictionLosses)*'Vessel Sheet Loads'!$J$24/$C27,0) -> 5 | L27: =ROUND((1-FrictionLosses)*'Vessel Sheet Loads'!$K$24/$C27,0) -> 6 | M27: =ROUND((1-FrictionLosses)*'Vessel Sheet Loads'!$L$24/$C27,0) -> 8 | N27: =ROUND((1-FrictionLosses)*'Vessel Sheet Loads'!$M$24/$C27,0) -> 9 | O27: =ROUND((1-FrictionLosses)*'Vessel Sheet Loads'!$N$24/$C27,0) -> 11
A29: Sail | B29: Model | C29: 1st Speed | D29: Lewmar Winch Handle Load (lbs.) for Apparent Wind (Knots)
C30: Power Ratio | D30: 5 | E30: =D30+5 -> 10 | F30: 15 | G30: 20 | H30: 25 | I30: 30 | J30: 35 | K30: 40 | L30: 45 | M30: 50 | N30: 55 | O30: 60
A31: =$A$13 -> Furling Genoa | B31: ='Select Winches'!$B$20 -> 54CST | C31: =VLOOKUP(B31,LewmarSpecs,4)*2*LenHandle/VLOOKUP(B31,LewmarSpecs,10) -> 13.57575758 | D31: =(1-FrictionLosses)*'Vessel Sheet Loads'!$C$4/$C31 -> 3.045245893 | E31: =ROUND((1-FrictionLosses)*'Vessel Sheet Loads'!$D$4/$C31,0) -> 12 | F31: =ROUND((1-FrictionLosses)*'Vessel Sheet Loads'!$E$4/$C31,0) -> 27 | G31: =ROUND((1-FrictionLosses)*'Vessel Sheet Loads'!$F$4/$C31,0) -> 49 | H31: =ROUND((1-FrictionLosses)*'Vessel Sheet Loads'!$G$4/$C31,0) -> 76 | I31: =ROUND((1-FrictionLosses)*'Vessel Sheet Loads'!$H$4/$C31,0) -> 110 | J31: =ROUND((1-FrictionLosses)*'Vessel Sheet Loads'!$I$4/$C31,0) -> 149 | K31: =ROUND((1-FrictionLosses)*'Vessel Sheet Loads'!$J$4/$C31,0) -> 195 | L31: =ROUND((1-FrictionLosses)*'Vessel Sheet Loads'!$K$4/$C31,0) -> 247 | M31: =ROUND((1-FrictionLosses)*'Vessel Sheet Loads'!$L$4/$C31,0) -> 305 | N31: =ROUND((1-FrictionLosses)*'Vessel Sheet Loads'!$M$4/$C31,0) -> 368 | O31: =ROUND((1-FrictionLosses)*'Vessel Sheet Loads'!$N$4/$C31,0) -> 439
A32: =$A$14 -> Genoa Part Furled (100%) | B32: ='Select Winches'!$B$20 -> 54CST | C32: 13.57575758 | D32: =(1-FrictionLosses)*'Vessel Sheet Loads'!$C$5/$C32 -> 2.444578125 | E32: =ROUND((1-FrictionLosses)*'Vessel Sheet Loads'!$D$5/$C32,0) -> 10 | F32: =ROUND((1-FrictionLosses)*'Vessel Sheet Loads'!$E$5/$C32,0) -> 22 | G32: =ROUND((1-FrictionLosses)*'Vessel Sheet Loads'!$F$5/$C32,0) -> 39 | H32: =ROUND((1-FrictionLosses)*'Vessel Sheet Loads'!$G$5/$C32,0) -> 61 | I32: =ROUND((1-FrictionLosses)*'Vessel Sheet Loads'!$H$5/$C32,0) -> 88 | J32: =ROUND((1-FrictionLosses)*'Vessel Sheet Loads'!$I$5/$C32,0) -> 120 | K32: =ROUND((1-FrictionLosses)*'Vessel Sheet Loads'!$J$5/$C32,0) -> 156 | L32: =ROUND((1-FrictionLosses)*'Vessel Sheet Loads'!$K$5/$C32,0) -> 198 | M32: =ROUND((1-FrictionLosses)*'Vessel Sheet Loads'!$L$5/$C32,0) -> 244 | N32: =ROUND((1-FrictionLosses)*'Vessel Sheet Loads'!$M$5/$C32,0) -> 296 | O32: =ROUND((1-FrictionLosses)*'Vessel Sheet Loads'!$N$5/$C32,0) -> 352
A33: =$A$15 -> Working Staysail | B33: ='Select Winches'!$B$21 -> 40CST | C33: 13.10344828 | D33: =(1-FrictionLosses)*'Vessel Sheet Loads'!$C$6/$C33 -> 1.052547368 | E33: =ROUND((1-FrictionLosses)*'Vessel Sheet Loads'!$D$6/$C33,0) -> 4 | F33: =ROUND((1-FrictionLosses)*'Vessel Sheet Loads'!$E$6/$C33,0) -> 9 | G33: =ROUND((1-FrictionLosses)*'Vessel Sheet Loads'!$F$6/$C33,0) -> 17 | H33: =ROUND((1-FrictionLosses)*'Vessel Sheet Loads'!$G$6/$C33,0) -> 26 | I33: =ROUND((1-FrictionLosses)*'Vessel Sheet Loads'!$H$6/$C33,0) -> 38 | J33: =ROUND((1-FrictionLosses)*'Vessel Sheet Loads'!$I$6/$C33,0) -> 52 | K33: =ROUND((1-FrictionLosses)*'Vessel Sheet Loads'!$J$6/$C33,0) -> 67 | L33: =ROUND((1-FrictionLosses)*'Vessel Sheet Loads'!$K$6/$C33,0) -> 85 | M33: =ROUND((1-FrictionLosses)*'Vessel Sheet Loads'!$L$6/$C33,0) -> 105 | N33: =ROUND((1-FrictionLosses)*'Vessel Sheet Loads'!$M$6/$C33,0) -> 127 | O33: =ROUND((1-FrictionLosses)*'Vessel Sheet Loads'!$N$6/$C33,0) -> 152
A34: =$A$16 -> Storm Staysail | B34: ='Select Winches'!$B$21 -> 40CST | C34: 13.10344828 | D34: =(1-FrictionLosses)*'Vessel Sheet Loads'!$C$7/$C34 -> 0.7565184211 | E34: =ROUND((1-FrictionLosses)*'Vessel Sheet Loads'!$D$7/$C34,0) -> 3 | F34: =ROUND((1-FrictionLosses)*'Vessel Sheet Loads'!$E$7/$C34,0) -> 7 | G34: =ROUND((1-FrictionLosses)*'Vessel Sheet Loads'!$F$7/$C34,0) -> 12 | H34: =ROUND((1-FrictionLosses)*'Vessel Sheet Loads'!$G$7/$C34,0) -> 19 | I34: =ROUND((1-FrictionLosses)*'Vessel Sheet Loads'!$H$7/$C34,0) -> 27 | J34: =ROUND((1-FrictionLosses)*'Vessel Sheet Loads'!$I$7/$C34,0) -> 37 | K34: =ROUND((1-FrictionLosses)*'Vessel Sheet Loads'!$J$7/$C34,0) -> 48 | L34: =ROUND((1-FrictionLosses)*'Vessel Sheet Loads'!$K$7/$C34,0) -> 61 | M34: =ROUND((1-FrictionLosses)*'Vessel Sheet Loads'!$L$7/$C34,0) -> 76 | N34: =ROUND((1-FrictionLosses)*'Vessel Sheet Loads'!$M$7/$C34,0) -> 92 | O34: =ROUND((1-FrictionLosses)*'Vessel Sheet Loads'!$N$7/$C34,0) -> 109
A35: =$A$17 -> Asym. Cr. Spinnaker | B35: ='Select Winches'!$B$20 -> 54CST | C35: 13.57575758 | D35: =(1-FrictionLosses)*'Vessel Sheet Loads'!$C$8/$C35 -> 8.222671875 | E35: =ROUND((1-FrictionLosses)*'Vessel Sheet Loads'!$D$8/$C35,0) -> 33 | F35: =ROUND((1-FrictionLosses)*'Vessel Sheet Loads'!$E$8/$C35,0) -> 74 | G35: =ROUND((1-FrictionLosses)*'Vessel Sheet Loads'!$F$8/$C35,0) -> 132 | H35: =ROUND((1-FrictionLosses)*'Vessel Sheet Loads'!$G$8/$C35,0) -> 206 | I35: =ROUND((1-FrictionLosses)*'Vessel Sheet Loads'!$H$8/$C35,0) -> 296 | J35: =ROUND((1-FrictionLosses)*'Vessel Sheet Loads'!$I$8/$C35,0) -> 403 | K35: =ROUND((1-FrictionLosses)*'Vessel Sheet Loads'!$J$8/$C35,0) -> 526 | L35: =ROUND((1-FrictionLosses)*'Vessel Sheet Loads'!$K$8/$C35,0) -> 666 | M35: =ROUND((1-FrictionLosses)*'Vessel Sheet Loads'!$L$8/$C35,0) -> 822 | N35: =ROUND((1-FrictionLosses)*'Vessel Sheet Loads'!$M$8/$C35,0) -> 995 | O35: =ROUND((1-FrictionLosses)*'Vessel Sheet Loads'!$N$8/$C35,0) -> 1184
A36: =$A$18 -> Storm Trysail / Third Reef | B36: ='Select Winches'!$B$20 -> 54CST | C36: 13.57575758 | D36: =(1-FrictionLosses)*'Vessel Sheet Loads'!$C$24/$C36 -> 0.1184620206 | E36: =ROUND((1-FrictionLosses)*'Vessel Sheet Loads'!$D$24/$C36,0) -> 0 | F36: =ROUND((1-FrictionLosses)*'Vessel Sheet Loads'!$E$24/$C36,0) -> 1 | G36: =ROUND((1-FrictionLosses)*'Vessel Sheet Loads'!$F$24/$C36,0) -> 2 | H36: =ROUND((1-FrictionLosses)*'Vessel Sheet Loads'!$G$24/$C36,0) -> 3 | I36: =ROUND((1-FrictionLosses)*'Vessel Sheet Loads'!$H$24/$C36,0) -> 4 | J36: =ROUND((1-FrictionLosses)*'Vessel Sheet Loads'!$I$24/$C36,0) -> 6 | K36: =ROUND((1-FrictionLosses)*'Vessel Sheet Loads'!$J$24/$C36,0) -> 8 | L36: =ROUND((1-FrictionLosses)*'Vessel Sheet Loads'!$K$24/$C36,0) -> 10 | M36: =ROUND((1-FrictionLosses)*'Vessel Sheet Loads'!$L$24/$C36,0) -> 12 | N36: =ROUND((1-FrictionLosses)*'Vessel Sheet Loads'!$M$24/$C36,0) -> 14 | O36: =ROUND((1-FrictionLosses)*'Vessel Sheet Loads'!$N$24/$C36,0) -> 17
A38: SECOND WINCH SPEED
A40: Sail | B40: Model | C40: 2nd Speed | D40: Anderson Winch Handle Load (lbs.) for Apparent Wind (Knots)
C41: Power Ratio | D41: 5 | E41: =D41+5 -> 10 | F41: 15 | G41: 20 | H41: 25 | I41: 30 | J41: 35 | K41: 40 | L41: 45 | M41: 50 | N41: 55 | O41: 60
A42: =$A$13 -> Furling Genoa | B42: ='Select Winches'!$B$8 -> 52ST | C42: =VLOOKUP(B42,AndersonSpecs,5)*2*LenHandle/VLOOKUP(B42,AndersonSpecs,10) -> 53.34 | D42: =(1-FrictionLosses)*'Vessel Sheet Loads'!$C$4/$C42 -> 0.7750566179 | E42: =ROUND((1-FrictionLosses)*'Vessel Sheet Loads'!$D$4/$C42,0) -> 3 | F42: =ROUND((1-FrictionLosses)*'Vessel Sheet Loads'!$E$4/$C42,0) -> 7 | G42: =ROUND((1-FrictionLosses)*'Vessel Sheet Loads'!$F$4/$C42,0) -> 12 | H42: =ROUND((1-FrictionLosses)*'Vessel Sheet Loads'!$G$4/$C42,0) -> 19 | I42: =ROUND((1-FrictionLosses)*'Vessel Sheet Loads'!$H$4/$C42,0) -> 28 | J42: =ROUND((1-FrictionLosses)*'Vessel Sheet Loads'!$I$4/$C42,0) -> 38 | K42: =ROUND((1-FrictionLosses)*'Vessel Sheet Loads'!$J$4/$C42,0) -> 50 | L42: =ROUND((1-FrictionLosses)*'Vessel Sheet Loads'!$K$4/$C42,0) -> 63 | M42: =ROUND((1-FrictionLosses)*'Vessel Sheet Loads'!$L$4/$C42,0) -> 78 | N42: =ROUND((1-FrictionLosses)*'Vessel Sheet Loads'!$M$4/$C42,0) -> 94 | O42: =ROUND((1-FrictionLosses)*'Vessel Sheet Loads'!$N$4/$C42,0) -> 112
A43: =$A$14 -> Genoa Part Furled (100%) | B43: ='Select Winches'!$B$8 -> 52ST | C43: 53.34 | D43: =(1-FrictionLosses)*'Vessel Sheet Loads'!$C$5/$C43 -> 0.6221784777 | E43: =ROUND((1-FrictionLosses)*'Vessel Sheet Loads'!$D$5/$C43,0) -> 2 | F43: =ROUND((1-FrictionLosses)*'Vessel Sheet Loads'!$E$5/$C43,0) -> 6 | G43: =ROUND((1-FrictionLosses)*'Vessel Sheet Loads'!$F$5/$C43,0) -> 10 | H43: =ROUND((1-FrictionLosses)*'Vessel Sheet Loads'!$G$5/$C43,0) -> 16 | I43: =ROUND((1-FrictionLosses)*'Vessel Sheet Loads'!$H$5/$C43,0) -> 22 | J43: =ROUND((1-FrictionLosses)*'Vessel Sheet Loads'!$I$5/$C43,0) -> 30 | K43: =ROUND((1-FrictionLosses)*'Vessel Sheet Loads'!$J$5/$C43,0) -> 40 | L43: =ROUND((1-FrictionLosses)*'Vessel Sheet Loads'!$K$5/$C43,0) -> 50 | M43: =ROUND((1-FrictionLosses)*'Vessel Sheet Loads'!$L$5/$C43,0) -> 62 | N43: =ROUND((1-FrictionLosses)*'Vessel Sheet Loads'!$M$5/$C43,0) -> 75 | O43: =ROUND((1-FrictionLosses)*'Vessel Sheet Loads'!$N$5/$C43,0) -> 90
A44: =$A$15 -> Working Staysail | B44: ='Select Winches'!$B$9 -> 40ST | C44: 40.10526316 | D44: =(1-FrictionLosses)*'Vessel Sheet Loads'!$C$6/$C44 -> 0.3438950131 | E44: =ROUND((1-FrictionLosses)*'Vessel Sheet Loads'!$D$6/$C44,0) -> 1 | F44: =ROUND((1-FrictionLosses)*'Vessel Sheet Loads'!$E$6/$C44,0) -> 3 | G44: =ROUND((1-FrictionLosses)*'Vessel Sheet Loads'!$F$6/$C44,0) -> 6 | H44: =ROUND((1-FrictionLosses)*'Vessel Sheet Loads'!$G$6/$C44,0) -> 9 | I44: =ROUND((1-FrictionLosses)*'Vessel Sheet Loads'!$H$6/$C44,0) -> 12 | J44: =ROUND((1-FrictionLosses)*'Vessel Sheet Loads'!$I$6/$C44,0) -> 17 | K44: =ROUND((1-FrictionLosses)*'Vessel Sheet Loads'!$J$6/$C44,0) -> 22 | L44: =ROUND((1-FrictionLosses)*'Vessel Sheet Loads'!$K$6/$C44,0) -> 28 | M44: =ROUND((1-FrictionLosses)*'Vessel Sheet Loads'!$L$6/$C44,0) -> 34 | N44: =ROUND((1-FrictionLosses)*'Vessel Sheet Loads'!$M$6/$C44,0) -> 42 | O44: =ROUND((1-FrictionLosses)*'Vessel Sheet Loads'!$N$6/$C44,0) -> 50
A45: =$A$16 -> Storm Staysail | B45: ='Select Winches'!$B$9 -> 40ST | C45: 40.10526316 | D45: =(1-FrictionLosses)*'Vessel Sheet Loads'!$C$7/$C45 -> 0.2471745407 | E45: =ROUND((1-FrictionLosses)*'Vessel Sheet Loads'!$D$7/$C45,0) -> 1 | F45: =ROUND((1-FrictionLosses)*'Vessel Sheet Loads'!$E$7/$C45,0) -> 2 | G45: =ROUND((1-FrictionLosses)*'Vessel Sheet Loads'!$F$7/$C45,0) -> 4 | H45: =ROUND((1-FrictionLosses)*'Vessel Sheet Loads'!$G$7/$C45,0) -> 6 | I45: =ROUND((1-FrictionLosses)*'Vessel Sheet Loads'!$H$7/$C45,0) -> 9 | J45: =ROUND((1-FrictionLosses)*'Vessel Sheet Loads'!$I$7/$C45,0) -> 12 | K45: =ROUND((1-FrictionLosses)*'Vessel Sheet Loads'!$J$7/$C45,0) -> 16 | L45: =ROUND((1-FrictionLosses)*'Vessel Sheet Loads'!$K$7/$C45,0) -> 20 | M45: =ROUND((1-FrictionLosses)*'Vessel Sheet Loads'!$L$7/$C45,0) -> 25 | N45: =ROUND((1-FrictionLosses)*'Vessel Sheet Loads'!$M$7/$C45,0) -> 30 | O45: =ROUND((1-FrictionLosses)*'Vessel Sheet Loads'!$N$7/$C45,0) -> 36
A46: =$A$17 -> Asym. Cr. Spinnaker | B46: ='Select Winches'!$B$8 -> 52ST | C46: 53.34 | D46: =(1-FrictionLosses)*'Vessel Sheet Loads'!$C$8/$C46 -> 2.092782152 | E46: =ROUND((1-FrictionLosses)*'Vessel Sheet Loads'!$D$8/$C46,0) -> 8 | F46: =ROUND((1-FrictionLosses)*'Vessel Sheet Loads'!$E$8/$C46,0) -> 19 | G46: =ROUND((1-FrictionLosses)*'Vessel Sheet Loads'!$F$8/$C46,0) -> 33 | H46: =ROUND((1-FrictionLosses)*'Vessel Sheet Loads'!$G$8/$C46,0) -> 52 | I46: =ROUND((1-FrictionLosses)*'Vessel Sheet Loads'!$H$8/$C46,0) -> 75 | J46: =ROUND((1-FrictionLosses)*'Vessel Sheet Loads'!$I$8/$C46,0) -> 103 | K46: =ROUND((1-FrictionLosses)*'Vessel Sheet Loads'!$J$8/$C46,0) -> 134 | L46: =ROUND((1-FrictionLosses)*'Vessel Sheet Loads'!$K$8/$C46,0) -> 170 | M46: =ROUND((1-FrictionLosses)*'Vessel Sheet Loads'!$L$8/$C46,0) -> 209 | N46: =ROUND((1-FrictionLosses)*'Vessel Sheet Loads'!$M$8/$C46,0) -> 253 | O46: =ROUND((1-FrictionLosses)*'Vessel Sheet Loads'!$N$8/$C46,0) -> 301
A47: =$A$18 -> Storm Trysail / Third Reef | B47: ='Select Winches'!$B$9 -> 40ST | C47: 40.10526316 | D47: =(1-FrictionLosses)*'Vessel Sheet Loads'!$C$24/$C47 -> 0.04009976613 | E47: =ROUND((1-FrictionLosses)*'Vessel Sheet Loads'!$D$24/$C47,0) -> 0 | F47: =ROUND((1-FrictionLosses)*'Vessel Sheet Loads'!$E$24/$C47,0) -> 0 | G47: =ROUND((1-FrictionLosses)*'Vessel Sheet Loads'!$F$24/$C47,0) -> 1 | H47: =ROUND((1-FrictionLosses)*'Vessel Sheet Loads'!$G$24/$C47,0) -> 1 | I47: =ROUND((1-FrictionLosses)*'Vessel Sheet Loads'!$H$24/$C47,0) -> 1 | J47: =ROUND((1-FrictionLosses)*'Vessel Sheet Loads'!$I$24/$C47,0) -> 2 | K47: =ROUND((1-FrictionLosses)*'Vessel Sheet Loads'!$J$24/$C47,0) -> 3 | L47: =ROUND((1-FrictionLosses)*'Vessel Sheet Loads'!$K$24/$C47,0) -> 3 | M47: =ROUND((1-FrictionLosses)*'Vessel Sheet Loads'!$L$24/$C47,0) -> 4 | N47: =ROUND((1-FrictionLosses)*'Vessel Sheet Loads'!$M$24/$C47,0) -> 5 | O47: =ROUND((1-FrictionLosses)*'Vessel Sheet Loads'!$N$24/$C47,0) -> 6
A48: Control & Trim Lines | B48: ='Select Winches'!$B$10 -> 28ST | C48: 26.85142857 | D48: =(1-FrictionLosses)*'Vessel Sheet Loads'!$C$33/$C47 -> 0.1353978106 | E48: =ROUND((1-FrictionLosses)*'Vessel Sheet Loads'!D$33/$C$58,0) -> 1 | F48: =ROUND((1-FrictionLosses)*'Vessel Sheet Loads'!E$33/$C$58,0) -> 2 | G48: =ROUND((1-FrictionLosses)*'Vessel Sheet Loads'!F$33/$C$58,0) -> 2 | H48: =ROUND((1-FrictionLosses)*'Vessel Sheet Loads'!G$33/$C$58,0) -> 3 | I48: =ROUND((1-FrictionLosses)*'Vessel Sheet Loads'!H$33/$C$58,0) -> 4 | J48: =ROUND((1-FrictionLosses)*'Vessel Sheet Loads'!I$33/$C$58,0) -> 3 | K48: =ROUND((1-FrictionLosses)*'Vessel Sheet Loads'!J$33/$C$58,0) -> 4 | L48: =ROUND((1-FrictionLosses)*'Vessel Sheet Loads'!K$33/$C$58,0) -> 5 | M48: =ROUND((1-FrictionLosses)*'Vessel Sheet Loads'!L$33/$C$58,0) -> 3 | N48: =ROUND((1-FrictionLosses)*'Vessel Sheet Loads'!M$33/$C$58,0) -> 3 | O48: =ROUND((1-FrictionLosses)*'Vessel Sheet Loads'!N$33/$C$58,0) -> 4
A50: Sail | B50: Model | C50: 2nd Speed | D50: Harken Winch Handle Load (lbs.) for Apparent Wind (Knots)
C51: Power Ratio | D51: 5 | E51: =D51+5 -> 10 | F51: 15 | G51: 20 | H51: 25 | I51: 30 | J51: 35 | K51: 40 | L51: 45 | M51: 50 | N51: 55 | O51: 60
A52: =$A$13 -> Furling Genoa | B52: ='Select Winches'!$B$14 -> B56.3STC | C52: =VLOOKUP(B52,HarkenSpecs,5)*2*LenHandle/VLOOKUP(B52,HarkenSpecs,10) -> 54.73684211 | D52: =(1-FrictionLosses)*'Vessel Sheet Loads'!$C$4/$C52 -> 0.7552777692 | E52: =ROUND((1-FrictionLosses)*'Vessel Sheet Loads'!$D$4/$C52,0) -> 3 | F52: =ROUND((1-FrictionLosses)*'Vessel Sheet Loads'!$E$4/$C52,0) -> 7 | G52: =ROUND((1-FrictionLosses)*'Vessel Sheet Loads'!$F$4/$C52,0) -> 12 | H52: =ROUND((1-FrictionLosses)*'Vessel Sheet Loads'!$G$4/$C52,0) -> 19 | I52: =ROUND((1-FrictionLosses)*'Vessel Sheet Loads'!$H$4/$C52,0) -> 27 | J52: =ROUND((1-FrictionLosses)*'Vessel Sheet Loads'!$I$4/$C52,0) -> 37 | K52: =ROUND((1-FrictionLosses)*'Vessel Sheet Loads'!$J$4/$C52,0) -> 48 | L52: =ROUND((1-FrictionLosses)*'Vessel Sheet Loads'!$K$4/$C52,0) -> 61 | M52: =ROUND((1-FrictionLosses)*'Vessel Sheet Loads'!$L$4/$C52,0) -> 76 | N52: =ROUND((1-FrictionLosses)*'Vessel Sheet Loads'!$M$4/$C52,0) -> 91 | O52: =ROUND((1-FrictionLosses)*'Vessel Sheet Loads'!$N$4/$C52,0) -> 109
A53: =$A$14 -> Genoa Part Furled (100%) | B53: ='Select Winches'!$B$14 -> B56.3STC | C53: 54.73684211 | D53: =(1-FrictionLosses)*'Vessel Sheet Loads'!$C$5/$C53 -> 0.6063009615 | E53: =ROUND((1-FrictionLosses)*'Vessel Sheet Loads'!$D$5/$C53,0) -> 2 | F53: =ROUND((1-FrictionLosses)*'Vessel Sheet Loads'!$E$5/$C53,0) -> 5 | G53: =ROUND((1-FrictionLosses)*'Vessel Sheet Loads'!$F$5/$C53,0) -> 10 | H53: =ROUND((1-FrictionLosses)*'Vessel Sheet Loads'!$G$5/$C53,0) -> 15 | I53: =ROUND((1-FrictionLosses)*'Vessel Sheet Loads'!$H$5/$C53,0) -> 22 | J53: =ROUND((1-FrictionLosses)*'Vessel Sheet Loads'!$I$5/$C53,0) -> 30 | K53: =ROUND((1-FrictionLosses)*'Vessel Sheet Loads'!$J$5/$C53,0) -> 39 | L53: =ROUND((1-FrictionLosses)*'Vessel Sheet Loads'!$K$5/$C53,0) -> 49 | M53: =ROUND((1-FrictionLosses)*'Vessel Sheet Loads'!$L$5/$C53,0) -> 61 | N53: =ROUND((1-FrictionLosses)*'Vessel Sheet Loads'!$M$5/$C53,0) -> 73 | O53: =ROUND((1-FrictionLosses)*'Vessel Sheet Loads'!$N$5/$C53,0) -> 87
A54: =$A$15 -> Working Staysail | B54: ='Select Winches'!$B$15 -> B40.2STC | C54: 40 | D54: =(1-FrictionLosses)*'Vessel Sheet Loads'!$C$6/$C54 -> 0.3448 | E54: =ROUND((1-FrictionLosses)*'Vessel Sheet Loads'!$D$6/$C54,0) -> 1 | F54: =ROUND((1-FrictionLosses)*'Vessel Sheet Loads'!$E$6/$C54,0) -> 3 | G54: =ROUND((1-FrictionLosses)*'Vessel Sheet Loads'!$F$6/$C54,0) -> 6 | H54: =ROUND((1-FrictionLosses)*'Vessel Sheet Loads'!$G$6/$C54,0) -> 9 | I54: =ROUND((1-FrictionLosses)*'Vessel Sheet Loads'!$H$6/$C54,0) -> 12 | J54: =ROUND((1-FrictionLosses)*'Vessel Sheet Loads'!$I$6/$C54,0) -> 17 | K54: =ROUND((1-FrictionLosses)*'Vessel Sheet Loads'!$J$6/$C54,0) -> 22 | L54: =ROUND((1-FrictionLosses)*'Vessel Sheet Loads'!$K$6/$C54,0) -> 28 | M54: =ROUND((1-FrictionLosses)*'Vessel Sheet Loads'!$L$6/$C54,0) -> 34 | N54: =ROUND((1-FrictionLosses)*'Vessel Sheet Loads'!$M$6/$C54,0) -> 42 | O54: =ROUND((1-FrictionLosses)*'Vessel Sheet Loads'!$N$6/$C54,0) -> 50
A55: =$A$16 -> Storm Staysail | B55: ='Select Winches'!$B$15 -> B40.2STC | C55: 40 | D55: =(1-FrictionLosses)*'Vessel Sheet Loads'!$C$7/$C55 -> 0.247825 | E55: =ROUND((1-FrictionLosses)*'Vessel Sheet Loads'!$D$7/$C55,0) -> 1 | F55: =ROUND((1-FrictionLosses)*'Vessel Sheet Loads'!$E$7/$C55,0) -> 2 | G55: =ROUND((1-FrictionLosses)*'Vessel Sheet Loads'!$F$7/$C55,0) -> 4 | H55: =ROUND((1-FrictionLosses)*'Vessel Sheet Loads'!$G$7/$C55,0) -> 6 | I55: =ROUND((1-FrictionLosses)*'Vessel Sheet Loads'!$H$7/$C55,0) -> 9 | J55: =ROUND((1-FrictionLosses)*'Vessel Sheet Loads'!$I$7/$C55,0) -> 12 | K55: =ROUND((1-FrictionLosses)*'Vessel Sheet Loads'!$J$7/$C55,0) -> 16 | L55: =ROUND((1-FrictionLosses)*'Vessel Sheet Loads'!$K$7/$C55,0) -> 20 | M55: =ROUND((1-FrictionLosses)*'Vessel Sheet Loads'!$L$7/$C55,0) -> 25 | N55: =ROUND((1-FrictionLosses)*'Vessel Sheet Loads'!$M$7/$C55,0) -> 30 | O55: =ROUND((1-FrictionLosses)*'Vessel Sheet Loads'!$N$7/$C55,0) -> 36
A56: =$A$17 -> Asym. Cr. Spinnaker | B56: ='Select Winches'!$B$14 -> B56.3STC | C56: 54.73684211 | D56: =(1-FrictionLosses)*'Vessel Sheet Loads'!$C$8/$C56 -> 2.039375962 | E56: =ROUND((1-FrictionLosses)*'Vessel Sheet Loads'!$D$8/$C56,0) -> 8 | F56: =ROUND((1-FrictionLosses)*'Vessel Sheet Loads'!$E$8/$C56,0) -> 18 | G56: =ROUND((1-FrictionLosses)*'Vessel Sheet Loads'!$F$8/$C56,0) -> 33 | H56: =ROUND((1-FrictionLosses)*'Vessel Sheet Loads'!$G$8/$C56,0) -> 51 | I56: =ROUND((1-FrictionLosses)*'Vessel Sheet Loads'!$H$8/$C56,0) -> 73 | J56: =ROUND((1-FrictionLosses)*'Vessel Sheet Loads'!$I$8/$C56,0) -> 100 | K56: =ROUND((1-FrictionLosses)*'Vessel Sheet Loads'!$J$8/$C56,0) -> 131 | L56: =ROUND((1-FrictionLosses)*'Vessel Sheet Loads'!$K$8/$C56,0) -> 165 | M56: =ROUND((1-FrictionLosses)*'Vessel Sheet Loads'!$L$8/$C56,0) -> 204 | N56: =ROUND((1-FrictionLosses)*'Vessel Sheet Loads'!$M$8/$C56,0) -> 247 | O56: =ROUND((1-FrictionLosses)*'Vessel Sheet Loads'!$N$8/$C56,0) -> 294
A57: =$A$18 -> Storm Trysail / Third Reef | B57: ='Select Winches'!$B$15 -> B40.2STC | C57: 40 | D57: =(1-FrictionLosses)*'Vessel Sheet Loads'!$C$24/$C57 -> 0.04020529183 | E57: =ROUND((1-FrictionLosses)*'Vessel Sheet Loads'!$D$24/$C57,0) -> 0 | F57: =ROUND((1-FrictionLosses)*'Vessel Sheet Loads'!$E$24/$C57,0) -> 0 | G57: =ROUND((1-FrictionLosses)*'Vessel Sheet Loads'!$F$24/$C57,0) -> 1 | H57: =ROUND((1-FrictionLosses)*'Vessel Sheet Loads'!$G$24/$C57,0) -> 1 | I57: =ROUND((1-FrictionLosses)*'Vessel Sheet Loads'!$H$24/$C57,0) -> 1 | J57: =ROUND((1-FrictionLosses)*'Vessel Sheet Loads'!$I$24/$C57,0) -> 2 | K57: =ROUND((1-FrictionLosses)*'Vessel Sheet Loads'!$J$24/$C57,0) -> 3 | L57: =ROUND((1-FrictionLosses)*'Vessel Sheet Loads'!$K$24/$C57,0) -> 3 | M57: =ROUND((1-FrictionLosses)*'Vessel Sheet Loads'!$L$24/$C57,0) -> 4 | N57: =ROUND((1-FrictionLosses)*'Vessel Sheet Loads'!$M$24/$C57,0) -> 5 | O57: =ROUND((1-FrictionLosses)*'Vessel Sheet Loads'!$N$24/$C57,0) -> 6
A58: Control & Trim Lines | B58: ='Select Winches'!$B$16 -> B32.2STC | C58: 32 | D58: =(1-FrictionLosses)*'Vessel Sheet Loads'!$C$33/$C57 -> 0.1357541207 | E58: =ROUND((1-FrictionLosses)*'Vessel Sheet Loads'!D$33/$C$58,0) -> 1 | F58: =ROUND((1-FrictionLosses)*'Vessel Sheet Loads'!E$33/$C$58,0) -> 2 | G58: =ROUND((1-FrictionLosses)*'Vessel Sheet Loads'!F$33/$C$58,0) -> 2 | H58: =ROUND((1-FrictionLosses)*'Vessel Sheet Loads'!G$33/$C$58,0) -> 3 | I58: =ROUND((1-FrictionLosses)*'Vessel Sheet Loads'!H$33/$C$58,0) -> 4 | J58: =ROUND((1-FrictionLosses)*'Vessel Sheet Loads'!I$33/$C$58,0) -> 3 | K58: =ROUND((1-FrictionLosses)*'Vessel Sheet Loads'!J$33/$C$58,0) -> 4 | L58: =ROUND((1-FrictionLosses)*'Vessel Sheet Loads'!K$33/$C$58,0) -> 5 | M58: =ROUND((1-FrictionLosses)*'Vessel Sheet Loads'!L$33/$C$58,0) -> 3 | N58: =ROUND((1-FrictionLosses)*'Vessel Sheet Loads'!M$33/$C$58,0) -> 3 | O58: =ROUND((1-FrictionLosses)*'Vessel Sheet Loads'!N$33/$C$58,0) -> 4
A60: Sail | B60: Model | C60: 2nd Speed | D60: Lewmar Winch Handle Load (lbs.) for Apparent Wind (Knots)
C61: Power Ratio | D61: 5 | E61: =D61+5 -> 10 | F61: 15 | G61: 20 | H61: 25 | I61: 30 | J61: 35 | K61: 40 | L61: 45 | M61: 50 | N61: 55 | O61: 60
A62: =$A$13 -> Furling Genoa | B62: ='Select Winches'!$B$20 -> 54CST | C62: =VLOOKUP(B62,LewmarSpecs,5)*2*LenHandle/VLOOKUP(B62,LewmarSpecs,10) -> 54.3030303 | D62: =(1-FrictionLosses)*'Vessel Sheet Loads'!$C$4/$C62 -> 0.7613114732 | E62: =ROUND((1-FrictionLosses)*'Vessel Sheet Loads'!$D$4/$C62,0) -> 3 | F62: =ROUND((1-FrictionLosses)*'Vessel Sheet Loads'!$E$4/$C62,0) -> 7 | G62: =ROUND((1-FrictionLosses)*'Vessel Sheet Loads'!$F$4/$C62,0) -> 12 | H62: =ROUND((1-FrictionLosses)*'Vessel Sheet Loads'!$G$4/$C62,0) -> 19 | I62: =ROUND((1-FrictionLosses)*'Vessel Sheet Loads'!$H$4/$C62,0) -> 27 | J62: =ROUND((1-FrictionLosses)*'Vessel Sheet Loads'!$I$4/$C62,0) -> 37 | K62: =ROUND((1-FrictionLosses)*'Vessel Sheet Loads'!$J$4/$C62,0) -> 49 | L62: =ROUND((1-FrictionLosses)*'Vessel Sheet Loads'!$K$4/$C62,0) -> 62 | M62: =ROUND((1-FrictionLosses)*'Vessel Sheet Loads'!$L$4/$C62,0) -> 76 | N62: =ROUND((1-FrictionLosses)*'Vessel Sheet Loads'!$M$4/$C62,0) -> 92 | O62: =ROUND((1-FrictionLosses)*'Vessel Sheet Loads'!$N$4/$C62,0) -> 110
A63: =$A$14 -> Genoa Part Furled (100%) | B63: ='Select Winches'!$B$20 -> 54CST | C63: 54.3030303 | D63: =(1-FrictionLosses)*'Vessel Sheet Loads'!$C$5/$C63 -> 0.6111445312 | E63: =ROUND((1-FrictionLosses)*'Vessel Sheet Loads'!$D$5/$C63,0) -> 2 | F63: =ROUND((1-FrictionLosses)*'Vessel Sheet Loads'!$E$5/$C63,0) -> 6 | G63: =ROUND((1-FrictionLosses)*'Vessel Sheet Loads'!$F$5/$C63,0) -> 10 | H63: =ROUND((1-FrictionLosses)*'Vessel Sheet Loads'!$G$5/$C63,0) -> 15 | I63: =ROUND((1-FrictionLosses)*'Vessel Sheet Loads'!$H$5/$C63,0) -> 22 | J63: =ROUND((1-FrictionLosses)*'Vessel Sheet Loads'!$I$5/$C63,0) -> 30 | K63: =ROUND((1-FrictionLosses)*'Vessel Sheet Loads'!$J$5/$C63,0) -> 39 | L63: =ROUND((1-FrictionLosses)*'Vessel Sheet Loads'!$K$5/$C63,0) -> 50 | M63: =ROUND((1-FrictionLosses)*'Vessel Sheet Loads'!$L$5/$C63,0) -> 61 | N63: =ROUND((1-FrictionLosses)*'Vessel Sheet Loads'!$M$5/$C63,0) -> 74 | O63: =ROUND((1-FrictionLosses)*'Vessel Sheet Loads'!$N$5/$C63,0) -> 88
A64: =$A$15 -> Working Staysail | B64: ='Select Winches'!$B$21 -> 40CST | C64: 40 | D64: =(1-FrictionLosses)*'Vessel Sheet Loads'!$C$6/$C64 -> 0.3448 | E64: =ROUND((1-FrictionLosses)*'Vessel Sheet Loads'!$D$6/$C64,0) -> 1 | F64: =ROUND((1-FrictionLosses)*'Vessel Sheet Loads'!$E$6/$C64,0) -> 3 | G64: =ROUND((1-FrictionLosses)*'Vessel Sheet Loads'!$F$6/$C64,0) -> 6 | H64: =ROUND((1-FrictionLosses)*'Vessel Sheet Loads'!$G$6/$C64,0) -> 9 | I64: =ROUND((1-FrictionLosses)*'Vessel Sheet Loads'!$H$6/$C64,0) -> 12 | J64: =ROUND((1-FrictionLosses)*'Vessel Sheet Loads'!$I$6/$C64,0) -> 17 | K64: =ROUND((1-FrictionLosses)*'Vessel Sheet Loads'!$J$6/$C64,0) -> 22 | L64: =ROUND((1-FrictionLosses)*'Vessel Sheet Loads'!$K$6/$C64,0) -> 28 | M64: =ROUND((1-FrictionLosses)*'Vessel Sheet Loads'!$L$6/$C64,0) -> 34 | N64: =ROUND((1-FrictionLosses)*'Vessel Sheet Loads'!$M$6/$C64,0) -> 42 | O64: =ROUND((1-FrictionLosses)*'Vessel Sheet Loads'!$N$6/$C64,0) -> 50
A65: =$A$16 -> Storm Staysail | B65: ='Select Winches'!$B$21 -> 40CST | C65: 40 | D65: =(1-FrictionLosses)*'Vessel Sheet Loads'!$C$7/$C65 -> 0.247825 | E65: =ROUND((1-FrictionLosses)*'Vessel Sheet Loads'!$D$7/$C65,0) -> 1 | F65: =ROUND((1-FrictionLosses)*'Vessel Sheet Loads'!$E$7/$C65,0) -> 2 | G65: =ROUND((1-FrictionLosses)*'Vessel Sheet Loads'!$F$7/$C65,0) -> 4 | H65: =ROUND((1-FrictionLosses)*'Vessel Sheet Loads'!$G$7/$C65,0) -> 6 | I65: =ROUND((1-FrictionLosses)*'Vessel Sheet Loads'!$H$7/$C65,0) -> 9 | J65: =ROUND((1-FrictionLosses)*'Vessel Sheet Loads'!$I$7/$C65,0) -> 12 | K65: =ROUND((1-FrictionLosses)*'Vessel Sheet Loads'!$J$7/$C65,0) -> 16 | L65: =ROUND((1-FrictionLosses)*'Vessel Sheet Loads'!$K$7/$C65,0) -> 20 | M65: =ROUND((1-FrictionLosses)*'Vessel Sheet Loads'!$L$7/$C65,0) -> 25 | N65: =ROUND((1-FrictionLosses)*'Vessel Sheet Loads'!$M$7/$C65,0) -> 30 | O65: =ROUND((1-FrictionLosses)*'Vessel Sheet Loads'!$N$7/$C65,0) -> 36
A66: =$A$17 -> Asym. Cr. Spinnaker | B66: ='Select Winches'!$B$21 -> 40CST | C66: 40 | D66: =(1-FrictionLosses)*'Vessel Sheet Loads'!$C$8/$C66 -> 2.790725 | E66: =ROUND((1-FrictionLosses)*'Vessel Sheet Loads'!$D$8/$C66,0) -> 11 | F66: =ROUND((1-FrictionLosses)*'Vessel Sheet Loads'!$E$8/$C66,0) -> 25 | G66: =ROUND((1-FrictionLosses)*'Vessel Sheet Loads'!$F$8/$C66,0) -> 45 | H66: =ROUND((1-FrictionLosses)*'Vessel Sheet Loads'!$G$8/$C66,0) -> 70 | I66: =ROUND((1-FrictionLosses)*'Vessel Sheet Loads'!$H$8/$C66,0) -> 100 | J66: =ROUND((1-FrictionLosses)*'Vessel Sheet Loads'!$I$8/$C66,0) -> 137 | K66: =ROUND((1-FrictionLosses)*'Vessel Sheet Loads'!$J$8/$C66,0) -> 179 | L66: =ROUND((1-FrictionLosses)*'Vessel Sheet Loads'!$K$8/$C66,0) -> 226 | M66: =ROUND((1-FrictionLosses)*'Vessel Sheet Loads'!$L$8/$C66,0) -> 279 | N66: =ROUND((1-FrictionLosses)*'Vessel Sheet Loads'!$M$8/$C66,0) -> 338 | O66: =ROUND((1-FrictionLosses)*'Vessel Sheet Loads'!$N$8/$C66,0) -> 402
A67: =$A$18 -> Storm Trysail / Third Reef | B67: ='Select Winches'!$B$21 -> 40CST | C67: 40 | D67: =(1-FrictionLosses)*'Vessel Sheet Loads'!$C$24/$C67 -> 0.04020529183 | E67: =ROUND((1-FrictionLosses)*'Vessel Sheet Loads'!$D$24/$C67,0) -> 0 | F67: =ROUND((1-FrictionLosses)*'Vessel Sheet Loads'!$E$24/$C67,0) -> 0 | G67: =ROUND((1-FrictionLosses)*'Vessel Sheet Loads'!$F$24/$C67,0) -> 1 | H67: =ROUND((1-FrictionLosses)*'Vessel Sheet Loads'!$G$24/$C67,0) -> 1 | I67: =ROUND((1-FrictionLosses)*'Vessel Sheet Loads'!$H$24/$C67,0) -> 1 | J67: =ROUND((1-FrictionLosses)*'Vessel Sheet Loads'!$I$24/$C67,0) -> 2 | K67: =ROUND((1-FrictionLosses)*'Vessel Sheet Loads'!$J$24/$C67,0) -> 3 | L67: =ROUND((1-FrictionLosses)*'Vessel Sheet Loads'!$K$24/$C67,0) -> 3 | M67: =ROUND((1-FrictionLosses)*'Vessel Sheet Loads'!$L$24/$C67,0) -> 4 | N67: =ROUND((1-FrictionLosses)*'Vessel Sheet Loads'!$M$24/$C67,0) -> 5 | O67: =ROUND((1-FrictionLosses)*'Vessel Sheet Loads'!$N$24/$C67,0) -> 6
A68: Control & Trim Lines | B68: ='Select Winches'!$B$22 -> 30CST | C68: 28.59574468 | D68: =(1-FrictionLosses)*'Vessel Sheet Loads'!$C$33/$C67 -> 0.1357541207 | E68: =ROUND((1-FrictionLosses)*'Vessel Sheet Loads'!D$33/$C$58,0) -> 1 | F68: =ROUND((1-FrictionLosses)*'Vessel Sheet Loads'!E$33/$C$58,0) -> 2 | G68: =ROUND((1-FrictionLosses)*'Vessel Sheet Loads'!F$33/$C$58,0) -> 2 | H68: =ROUND((1-FrictionLosses)*'Vessel Sheet Loads'!G$33/$C$58,0) -> 3 | I68: =ROUND((1-FrictionLosses)*'Vessel Sheet Loads'!H$33/$C$58,0) -> 4 | J68: =ROUND((1-FrictionLosses)*'Vessel Sheet Loads'!I$33/$C$58,0) -> 3 | K68: =ROUND((1-FrictionLosses)*'Vessel Sheet Loads'!J$33/$C$58,0) -> 4 | L68: =ROUND((1-FrictionLosses)*'Vessel Sheet Loads'!K$33/$C$58,0) -> 5 | M68: =ROUND((1-FrictionLosses)*'Vessel Sheet Loads'!L$33/$C$58,0) -> 3 | N68: =ROUND((1-FrictionLosses)*'Vessel Sheet Loads'!M$33/$C$58,0) -> 3 | O68: =ROUND((1-FrictionLosses)*'Vessel Sheet Loads'!N$33/$C$58,0) -> 4
A70: HIGH SPEED for HARKEN 3-SPEED WINCHES
A72: Sail | B72: Model | C72: 3rd Speed | D72: 3-Speed Harken Winch Handle Load (lbs.) for Apparent Wind (Knots) - Highest Speed
C73: Power Ratio | D73: 5 | E73: =D73+5 -> 10 | F73: 15 | G73: 20 | H73: 25 | I73: 30 | J73: 35 | K73: 40 | L73: 45 | M73: 50 | N73: 55 | O73: 60
A74: =$A$13 -> Furling Genoa | B74: ='Select Winches'!$B$14 -> B56.3STC | C74: =VLOOKUP(B74,HarkenSpecs,6)*2*LenHandle/VLOOKUP(B74,HarkenSpecs,10) -> 9.263157895 | D74: =(1-FrictionLosses)*'Vessel Sheet Loads'!C$4/$C74 -> 4.463005 | E74: =(1-FrictionLosses)*'Vessel Sheet Loads'!D$4/$C74 -> 17.85202 | F74: =(1-FrictionLosses)*'Vessel Sheet Loads'!E$4/$C74 -> 40.167045 | G74: =(1-FrictionLosses)*'Vessel Sheet Loads'!F$4/$C74 -> 71.40808 | H74: =(1-FrictionLosses)*'Vessel Sheet Loads'!G$4/$C74 -> 111.575125 | I74: =(1-FrictionLosses)*'Vessel Sheet Loads'!H$4/$C74 -> 160.66818 | J74: =(1-FrictionLosses)*'Vessel Sheet Loads'!I$4/$C74 -> 218.687245 | K74: =(1-FrictionLosses)*'Vessel Sheet Loads'!J$4/$C74 -> 285.63232 | L74: =(1-FrictionLosses)*'Vessel Sheet Loads'!K$4/$C74 -> 361.503405 | M74: =(1-FrictionLosses)*'Vessel Sheet Loads'!L$4/$C74 -> 446.3005 | N74: =(1-FrictionLosses)*'Vessel Sheet Loads'!M$4/$C74 -> 540.023605 | O74: =(1-FrictionLosses)*'Vessel Sheet Loads'!N$4/$C74 -> 642.67272
A75: =$A$14 -> Genoa Part Furled (100%) | B75: ='Select Winches'!$B$14 -> B56.3STC | C75: =VLOOKUP(B75,HarkenSpecs,6)*2*LenHandle/VLOOKUP(B75,HarkenSpecs,10) -> 9.263157895 | D75: =(1-FrictionLosses)*'Vessel Sheet Loads'!C$5/$C75 -> 3.5826875 | E75: =(1-FrictionLosses)*'Vessel Sheet Loads'!D$5/$C75 -> 14.33075 | F75: =(1-FrictionLosses)*'Vessel Sheet Loads'!E$5/$C75 -> 32.2441875 | G75: =(1-FrictionLosses)*'Vessel Sheet Loads'!F$5/$C75 -> 57.323 | H75: =(1-FrictionLosses)*'Vessel Sheet Loads'!G$5/$C75 -> 89.5671875 | I75: =(1-FrictionLosses)*'Vessel Sheet Loads'!H$5/$C75 -> 128.97675 | J75: =(1-FrictionLosses)*'Vessel Sheet Loads'!I$5/$C75 -> 175.5516875 | K75: =(1-FrictionLosses)*'Vessel Sheet Loads'!J$5/$C75 -> 229.292 | L75: =(1-FrictionLosses)*'Vessel Sheet Loads'!K$5/$C75 -> 290.1976875 | M75: =(1-FrictionLosses)*'Vessel Sheet Loads'!L$5/$C75 -> 358.26875 | N75: =(1-FrictionLosses)*'Vessel Sheet Loads'!M$5/$C75 -> 433.5051875 | O75: =(1-FrictionLosses)*'Vessel Sheet Loads'!N$5/$C75 -> 515.907
A76: =$A$18 -> Storm Trysail / Third Reef | B76: ='Select Winches'!$B$14 -> B56.3STC | C76: =VLOOKUP(B76,HarkenSpecs,6)*2*LenHandle/VLOOKUP(B76,HarkenSpecs,10) -> 9.263157895 | D76: =(1-FrictionLosses)*'Vessel Sheet Loads'!C$24/$C76 -> 0.1736137602 | E76: =(1-FrictionLosses)*'Vessel Sheet Loads'!D$24/$C76 -> 0.6944550407 | F76: =(1-FrictionLosses)*'Vessel Sheet Loads'!E$24/$C76 -> 1.562523842 | G76: =(1-FrictionLosses)*'Vessel Sheet Loads'!F$24/$C76 -> 2.777820163 | H76: =(1-FrictionLosses)*'Vessel Sheet Loads'!G$24/$C76 -> 4.340344004 | I76: =(1-FrictionLosses)*'Vessel Sheet Loads'!H$24/$C76 -> 6.250095366 | J76: =(1-FrictionLosses)*'Vessel Sheet Loads'!I$24/$C76 -> 8.507074248 | K76: =(1-FrictionLosses)*'Vessel Sheet Loads'!J$24/$C76 -> 11.11128065 | L76: =(1-FrictionLosses)*'Vessel Sheet Loads'!K$24/$C76 -> 14.06271457 | M76: =(1-FrictionLosses)*'Vessel Sheet Loads'!L$24/$C76 -> 17.36137602 | N76: =(1-FrictionLosses)*'Vessel Sheet Loads'!M$24/$C76 -> 21.00726498 | O76: =(1-FrictionLosses)*'Vessel Sheet Loads'!N$24/$C76 -> 25.00038146

Sheet Price Analysis
A1: COMPARATIVE PRICE ANALYSIS
A3: Anderson | B3: Discount | C3: 0.4
B4: List Price | C4: =SUM(F8:F10) -> 15356
B5: Disc. Price | C5: =SUM(G8:G10) -> 9213.6
B6: Special Price | C6: =C5-I6 -> 9213.6
A7: Winch | B7: Quantity | C7: Model | D7: MSRP (each) | E7: Extended Price (each) | F7: Total MSRP | G7: Total Discounted Price
A8: Primary | B8: 2 | C8: =VLOOKUP(A8,'Select Winches'!$A$8:$B$10,2) -> 52ST | D8: =VLOOKUP(C8,AndersonSpecs,16) -> 3399 | E8: =(1-$C$3)*D8 -> 2039.4 | F8: =$B8*D8 -> 6798 | G8: 4078.8
A9: Secondary | B9: 4 | C9: =VLOOKUP(A9,'Select Winches'!$A$8:$B$10,2) -> 40ST | D9: =VLOOKUP(C9,AndersonSpecs,16) -> 1394 | E9: =(1-$C$3)*D9 -> 836.4 | F9: 5576 | G9: 3345.6
A10: Trim | B10: 3 | C10: =VLOOKUP(A10,'Select Winches'!$A$8:$B$10,2) -> 28ST | D10: =VLOOKUP(C10,AndersonSpecs,16) -> 994 | E10: =(1-$C$3)*D10 -> 596.4 | F10: 2982 | G10: 1789.2
A12: Harken | B12: Discount | C12: 0.4
B13: List Price | C13: =SUM(F17:F19) -> 16981
B14: Disc. Price | C14: =SUM(G17:G19) -> 10188.6
B15: Special Price | C15: =C14-I15 -> 10188.6
A16: Winch | B16: Quantity | C16: Model | D16: MSRP (each) | E16: Extended Price (each) | F16: Total MSRP | G16: Total Discounted Price
A17: Primary | B17: =B8 -> 2 | C17: =VLOOKUP(A17,'Select Winches'!$A$14:$B$16,2) -> B56.3STC | D17: =VLOOKUP(C17,HarkenSpecs,16) -> 4350 | E17: =(1-$C$12)*D17 -> 2610 | F17: =$B17*D17 -> 8700 | G17: 5220
A18: Secondary | B18: =B9 -> 4 | C18: =VLOOKUP(A18,'Select Winches'!$A$14:$B$16,2) -> B40.2STC | D18: =VLOOKUP(C18,HarkenSpecs,16) -> 1249 | E18: =(1-$C$12)*D18 -> 749.4 | F18: 4996 | G18: 2997.6
A19: Trim | B19: =B10 -> 3 | C19: =VLOOKUP(A19,'Select Winches'!$A$14:$B$16,2) -> B32.2STC | D19: =VLOOKUP(C19,HarkenSpecs,16) -> 1095 | E19: =(1-$C$12)*D19 -> 657 | F19: 3285 | G19: 1971
A21: Lewmar | B21: Discount | C21: 0.4
B22: List Price | C22: =SUM(F26:F28) -> 13377
B23: Disc. Price | C23: =SUM(G26:G28) -> 8026.2
B24: Special Price | C24: =C23-I24 -> 8026.2
A25: Winch | B25: Quantity | C25: Model | D25: MSRP (each) | E25: Extended Price (each) | F25: Total MSRP | G25: Total Discounted Price
A26: Primary | B26: =B8 -> 2 | C26: =VLOOKUP(A26,'Select Winches'!$A$20:$B$23,2) -> 54CST | D26: =VLOOKUP(C26,LewmarSpecs,16) -> 2930 | E26: =(1-$C$21)*D26 -> 1758 | F26: =$B26*D26 -> 5860 | G26: 3516
A27: Secondary | B27: =B9 -> 4 | C27: =VLOOKUP(A27,'Select Winches'!$A$20:$B$23,2) -> 40CST | D27: =VLOOKUP(C27,LewmarSpecs,16) -> 1130 | E27: =(1-$C$21)*D27 -> 678 | F27: 4520 | G27: 2712
A28: Trim | B28: =B10 -> 3 | C28: =VLOOKUP(A28,'Select Winches'!$A$20:$B$23,2) -> 30CST | D28: =VLOOKUP(C28,LewmarSpecs,16) -> 999 | E28: =(1-$C$21)*D28 -> 599.4 | F28: 2997 | G28: 1798.2

Sheet Harken Winch Specs
A1: Harken Winch Specs
A2: Part No. | B2: SIZE | C2: SPEEDS | D2: Gear Ratio | G2: Mfg. Rated Power Ratio | J2: Drum | K2: Base | L2: Height | M2: Line | N2: Min. | O2: Max | P2: List
J3: Dia.(ins) | K3: Dia.(ins) | L3: (ins) | M3: Entry | N3: Line | O3: Line | P3: Price
D4: 1st | E4: 2nd | F4: 3rd | G4: 1st | H4: 2nd | I4: 3rd | M4: Hght.(ins) | N4: Dia.(ins) | O4: Dia.(ins)
A5: B16STC | B5: 16 | C5: 1 | D5: 2.3 | E5: =-NA() ->  | F5: =-NA() ->  | G5: 16 | H5: =-NA() ->  | I5: =-NA() ->  | J5: 2.75 | K5: 4.75 | L5: 5.5625 | M5: 2 | N5: 0.25 | O5: 0.5 | P5: 694
A6: B32.2STC | B6: 32 | C6: 2 | D6: 2.4 | E6: 4.7 | F6: =-NA() ->  | G6: 16 | H6: 32 | I6: =-NA() ->  | J6: 2.9375 | K6: 5.375 | L6: 6.4375 | M6: 2.75 | N6: 0.3125 | O6: 0.5 | P6: 1095
A7: B40.2STC | B7: 40 | C7: 2 | D7: 2.2 | E7: 6 | F7: =-NA() ->  | G7: 13.5 | H7: 40 | I7: =-NA() ->  | J7: 3 | K7: 5.875 | L7: 6.9375 | M7: 2.75 | N7: 0.3125 | O7: 0.5 | P7: 1249
A8: B42.2STC | B8: 42 | C8: 2 | D8: 2.5 | E8: 7.3 | F8: =-NA() ->  | G8: 14 | H8: 42 | I8: =-NA() ->  | J8: 3.5625 | K8: 6.5 | L8: 7.6875 | M8: 3.375 | N8: 0.3125 | O8: 0.5625 | P8: 1464.08
A9: B44.2STC | B9: 44 | C9: 2 | D9: 2.5 | E9: 8.2 | F9: =-NA() ->  | G9: 13.8 | H9: 44 | I9: =-NA() ->  | J9: 3.625 | K9: 6.6875 | L9: 8.125 | M9: 3.375 | N9: 0.3125 | O9: 0.5625 | P9: 1835
A10: B46.2STC | B10: 46 | C10: 2 | D10: 2.5 | E10: 9.2 | F10: =-NA() ->  | G10: 13 | H10: 46 | I10: =-NA() ->  | J10: 3.9375 | K10: 6.875 | L10: 8.5625 | M10: 3.5625 | N10: 0.3125 | O10: 0.5625 | P10: 2169
A11: B48.2STC | B11: 48 | C11: 2 | D11: 2.5 | E11: 10 | F11: =-NA() ->  | G11: 12 | H11: 48 | I11: =-NA() ->  | J11: 4 | K11: 7.5 | L11: 9 | M11: 3.9375 | N11: 0.3125 | O11: 0.5625 | P11: 2729
A12: B53.2STC | B12: 53 | C12: 2 | D12: 3 | E12: 12 | F12: =-NA() ->  | G12: 13.1 | H12: 53 | I12: =-NA() ->  | J12: 4.4375 | K12: 8.6875 | L12: 9.6875 | M12: 4.1875 | N12: 0.3125 | O12: 0.5625 | P12: 3150
A13: B56.2STC | B13: 56 | C13: 2 | D13: 5 | E13: 13 | F13: =-NA() ->  | G13: 21 | H13: 56 | I13: =-NA() ->  | J13: 4.75 | K13: 8.875 | L13: 10.625 | M13: 4.9375 | N13: 0.3125 | O13: 0.625 | P13: 4100
A14: B56.3STC | B14: 56 | C14: 3 | D14: 5 | E14: 13 | F14: 2.2 | G14: 21 | H14: 56 | I14: 9 | J14: 4.75 | K14: 8.875 | L14: 10.625 | M14: 4.9375 | N14: 0.3125 | O14: 0.625 | P14: 4350
A15: B64.2STC | B15: 64 | C15: 2 | D15: 5.7 | E15: 16.5 | F15: =-NA() ->  | G15: 22.5 | H15: 64 | I15: =-NA() ->  | J15: 5.125 | K15: 9.625 | L15: 12.125 | M15: 5.875 | N15: 0.3125 | O15: 0.75 | P15: 5660
A16: B64.3STC | B16: 64 | C16: 3 | D16: 5.7 | E16: 16.5 | F16: 2.3 | G16: 22.5 | H16: 64 | I16: 9 | J16: 5.125 | K16: 9.625 | L16: 11.8125 | M16: 5.875 | N16: 0.3125 | O16: 0.75 | P16: 6060
A17: B66.2STC | B17: 66 | C17: 2 | D17: 7.3 | E17: 20 | F17: =-NA() ->  | G17: 25 | H17: 66 | I17: =-NA() ->  | J17: 5.875 | K17: 10.4375 | L17: 13 | M17: 5.875 | N17: 0.375 | O17: 0.8125 | P17: 6760
A18: B66.3STC | B18: 66 | C18: 3 | D18: 7.3 | E18: 20 | F18: 2.8 | G18: 25 | H18: 66 | I18: 9.3 | J18: 5.875 | K18: 10.4375 | L18: 13 | M18: 5.875 | N18: 0.375 | O18: 0.8125 | P18: 7160
A19: B74.2STC | B19: 74 | C19: 2 | D19: 7.3 | E19: 22 | F19: =-NA() ->  | G19: 22 | H19: 25 | I19: =-NA() ->  | J19: 5.875 | K19: 10.4375 | L19: 13 | M19: 5.875 | N19: 0.375 | O19: 0.8125 | P19: 7888
A20: B74.3STC | B20: 74 | C20: 3 | D20: 7.3 | E20: 22 | F20: 2.8 | G20: 25 | H20: 74 | I20: 9.3 | J20: 5.875 | K20: 10.4375 | L20: 13 | M20: 5.875 | N20: 0.375 | O20: 0.875 | P20: 8288

Sheet Anderson Winch Specs
A1: Anderson Self Tailing Winches (Metric)
A2: Part No. | B2: SIZE | C2: SPEEDS | D2: Gear Ratio | G2: Mfg. Rated Power Ratio | J2: Drum | K2: Base | L2: Height | M2: Line Entry | N2: Line Size | O2: Weight
D3: 1st | E3: 2nd | F3: 3rd | G3: 1st | H3: 2nd | I3: 3rd | O3: kg
A4: 12ST | B4: 12 | C4: 1 | D4: 1.3 | E4: =-NA() ->  | F4: =-NA() ->  | G4: 9.5 | H4: =-NA() ->  | I4: =-NA() ->  | J4: 70mm | K4: 114mm | L4: 130mm | M4: 40mm | N4: 10-12mm | O4: 2.8
A5: 28ST | B5: 28 | C5: 2 | D5: 1.3 | E5: 3.7 | F5: =-NA() ->  | G5: 9.5 | H5: 26.5 | I5: =-NA() ->  | J5: 70mm | K5: 125mm | L5: 152mm | M5: 62mm | N5: 10-12mm | O5: 4.1
A6: 40ST | B6: 40 | C6: 2 | D6: 1.3 | E6: 6 | F6: =-NA() ->  | G6: 8.5 | H6: 39.5 | I6: =-NA() ->  | J6: 76mm | K6: 152mm | L6: 172mm | M6: 68mm | N6: 10-12mm | O6: 4.9
A7: 46ST | B7: 46 | C7: 2 | D7: 2.8 | E7: 8.4 | F7: =-NA() ->  | G7: 15.5 | H7: 46.6 | I7: =-NA() ->  | J7: 90mm | K7: 180mm | L7: 205mm | M7: 85mm | N7: 12-14mm | O7: 7.3
A8: 52ST | B8: 52 | C8: 2 | D8: 3.2 | E8: 10.5 | F8: =-NA() ->  | G8: 16.2 | H8: 52 | I8: =-NA() ->  | J8: 100mm | K8: 200mm | L8: 225mm | M8: 98mm | N8: 12-16mm | O8: 9.9
A9: 58ST | B9: 58 | C9: 2 | D9: 3.7 | E9: 13.1 | F9: =-NA() ->  | G9: 16.1 | H9: 57.7 | I9: =-NA() ->  | J9: 115mm | K9: 230mm | L9: 258mm | M9: 100mm | N9: 14-18mm | O9: 15
A11: Anderson Self Tailing Winches (English)
A12: Part No. | B12: SIZE | C12: SPEEDS | D12: Gear Ratio | G12: Mfg. Rated Power Ratio | J12: Drum | K12: Base | L12: Height | M12: Line Entry | N12: Line Size | O12: Weight | P12: List
D13: 1st | E13: 2nd | F13: 3rd | G13: 1st | H13: 2nd | I13: 3rd | O13: lbs | P13: Price
A14: 12ST | B14: 12 | C14: 1 | D14: 1.3 | E14: =-NA() ->  | F14: =-NA() ->  | G14: 9.5 | H14: =-NA() ->  | I14: =-NA() ->  | J14: =SUBSTITUTE(J4,"mm","")/25.4 -> 2.755905512 | K14: 4.488188976 | L14: 5.118110236 | M14: 1.57480315 | N14: 3/8 - 1/2 | O14: =O4*2.2 -> 6.16 | P14: 524
A15: 28ST | B15: 28 | C15: 2 | D15: 1.3 | E15: 3.7 | F15: =-NA() ->  | G15: 9.5 | H15: 26.5 | I15: =-NA() ->  | J15: 2.755905512 | K15: 4.921259843 | L15: 5.984251969 | M15: 2.440944882 | N15: 3/8 - 1/2 | O15: 9.02 | P15: 994
A16: 40ST | B16: 40 | C16: 2 | D16: 1.3 | E16: 6 | F16: =-NA() ->  | G16: 8.5 | H16: 39.5 | I16: =-NA() ->  | J16: 2.992125984 | K16: 5.984251969 | L16: 6.771653543 | M16: 2.677165354 | N16: 3/8 - 1/2 | O16: 10.78 | P16: 1394
A17: 46ST | B17: 46 | C17: 2 | D17: 2.8 | E17: 8.4 | F17: =-NA() ->  | G17: 15.5 | H17: 46.6 | I17: =-NA() ->  | J17: 3.543307087 | K17: 7.086614173 | L17: 8.070866142 | M17: 3.346456693 | N17: 1/2 - 9/16 | O17: 16.06 | P17: =1075/0.75 -> 1433.333333
A18: 52ST | B18: 52 | C18: 2 | D18: 3.2 | E18: 10.5 | F18: =-NA() ->  | G18: 16.2 | H18: 52 | I18: =-NA() ->  | J18: 3.937007874 | K18: 7.874015748 | L18: 8.858267717 | M18: 3.858267717 | N18: 1/2 - 9/16 | O18: 21.78 | P18: 3399
A19: 58ST | B19: 58 | C19: 2 | D19: 3.7 | E19: 13.1 | F19: =-NA() ->  | G19: 16.1 | H19: 57.7 | I19: =-NA() ->  | J19: 4.527559055 | K19: 9.05511811 | L19: 10.15748031 | M19: 3.937007874 | N19: 9/16 - 11/16 | O19: 33 | P19: =2228/0.75 -> 2970.666667

Sheet Lewmar Winch Specs
A1: Lewmar Self Tailing Winches
A2: Part No. | B2: SIZE | C2: SPEEDS | D2: Gear Ratio | G2: Mfg. Rated Power Ratio | J2: Drum | K2: Base | L2: Height | M2: Line Entry | N2: Line Size | O2: Weight | P2: List
P3: Price
D4: 1st | E4: 2nd | F4: 3rd | G4: 1st | H4: 2nd | I4: 3rd | J4: in. | K4: in. | L4: in. | N4: in. | O4: lbs
A5: 16CST | B5: 16 | C5: 2 | D5: 2 | E5: =NA() ->  | F5: =NA() ->  | G5: 15.8 | H5: =NA() ->  | I5: =NA() ->  | J5: 2.5625 | K5: 4.75 | L5: 5.75 | M5: 2.3125 | N5: 5/16-1/2 | O5: 1.9 | P5: 620
A6: 30CST | B6: 30 | C6: 2 | D6: 2 | E6: 4.2 | F6: =NA() ->  | G6: 13.8 | H6: 29.2 | I6: =NA() ->  | J6: 2.9375 | K6: 5.4375 | L6: 6.3125 | M6: 2.6875 | N6: 5/16-1/2 | O6: 12.8 | P6: 999
A7: 40CST | B7: 40 | C7: 2 | D7: 1.9 | E7: 5.8 | F7: =NA() ->  | G7: 13.2 | H7: 40.2 | I7: =NA() ->  | J7: 2.9 | K7: 5.8125 | L7: 6.8125 | M7: 3.125 | N7: 5/16-1/2 | O7: 14.7 | P7: 1130
A8: 44CST | B8: 44 | C8: 2 | D8: 2.4 | E8: 7.6 | F8: =NA() ->  | G8: 13.9 | H8: 44.8 | I8: =NA() ->  | J8: 3.4375 | K8: 6.625 | L8: 7.5625 | M8: 3.3125 | N8: 5/16-9/16 | O8: 22 | P8: 1630
A9: 48CST | B9: 48 | C9: 2 | D9: 2.6 | E9: 9 | F9: =NA() ->  | G9: 13.9 | H9: 48.6 | I9: =NA() ->  | J9: 3.625 | K9: 7.125 | L9: 8.1875 | M9: 3.375 | N9: 5/16-9/16 | O9: 27.7 | P9: 1744
A10: 50CST | B10: 50 | C10: 2 | D10: 2.8 | E10: 10.5 | F10: =NA() ->  | G10: 13.8 | H10: 50.6 | I10: =NA() ->  | J10: 4.125 | K10: 7.875 | L10: 9.375 | M10: 4.1875 | N10: 5/16-5/8 | O10: 37.2 | P10: 2048
A11: 54CST | B11: 54 | C11: 2 | D11: 2.8 | E11: 11.2 | F11: =NA() ->  | G11: 13.8 | H11: 54 | I11: =NA() ->  | J11: 4.125 | K11: 8.0625 | L11: 9.875 | M11: 4.5 | N11: 5/16-5/8 | O11: 38.7 | P11: 2930
A12: 58CST | B12: 58 | C12: 2 | D12: 3.1 | E12: 13.5 | F12: =NA() ->  | G12: 13.5 | H12: 58.1 | I12: =NA() ->  | J12: 4.625 | K12: 9 | L12: 10.5 | M12: 4.6875 | N12: 5/16-11/16 | O12: 47.5
A13: 64CST | B13: 64 | C13: 2 | D13: 3.1 | E13: 14.8 | F13: =NA() ->  | G13: 13.4 | H13: 64 | I13: =NA() ->  | J13: 4.625 | K13: 9.125 | L13: 10.6875 | M13: 4.8125 | N13: 5/16-11/16 | O13: 54.1
